Workbook

Sheet leány (hidden)
B1: 61 m | C1: 60m | D1: 101 m | E1: 100m | F1: 801 m | G1: 800 m | H1: Pont | I1: Távol | J1: Súlyl. | K1: Kisl. | L1: Pont
B2: 6.89 | C2: 6.9 | D2: 11.34 | E2: 11.35 | F2: 00:01:58 | G2: 00:02:00 | H2: 300 | I2: =R2/100 -> 1.8 | J2: 3 | K2: 4 | L2: 0 | R2: 180
B3: 6.9051 | C3: 6.918 | D3: 11.351 | E3: 11.37 | F3: 00:02:00.001 | G3: 00:02:00.200 | H3: 299 | I3: 1.82 | J3: 3.05 | K3: 4.28 | L3: 1 | R3: 182
B4: 6.9231 | C4: 6.936 | D4: 11.371 | E4: 11.39 | F4: 00:02:00.201 | G4: 00:02:00.600 | H4: 298 | I4: 1.84 | J4: 3.1 | K4: 4.56 | L4: 2 | R4: 184
B5: 6.9411 | C5: 6.954 | D5: 11.391 | E5: 11.41 | F5: 00:02:00.601 | G5: 00:02:00.900 | H5: 297 | I5: 1.86 | J5: 3.14 | K5: 4.84 | L5: 3 | R5: 186
B6: 6.9591 | C6: 6.972 | D6: 11.411 | E6: 11.43 | F6: 00:02:00.901 | G6: 00:02:01.200 | H6: 296 | I6: 1.87 | J6: 3.19 | K6: 5.11 | L6: 4 | R6: 187
B7: 6.9771 | C7: 6.99 | D7: 11.431 | E7: 11.46 | F7: 00:02:01.201 | G7: 00:02:01.500 | H7: 295 | I7: 1.89 | J7: 3.24 | K7: 5.39 | L7: 5 | R7: 189
B8: 6.9951 | C8: 7.008 | D8: 11.461 | E8: 11.48 | F8: 00:02:01.501 | G8: 00:02:01.800 | H8: 294 | I8: 1.91 | J8: 3.29 | K8: 5.67 | L8: 6 | R8: 191
B9: 7.0131 | C9: 7.026 | D9: 11.481 | E9: 11.5 | F9: 00:02:01.801 | G9: 00:02:02.100 | H9: 293 | I9: 1.93 | J9: 3.34 | K9: 5.95 | L9: 7 | R9: 193
B10: 7.0311 | C10: 7.044 | D10: 11.501 | E10: 11.52 | F10: 00:02:02.101 | G10: 00:02:02.400 | H10: 292 | I10: 1.95 | J10: 3.38 | K10: 6.23 | L10: 8 | R10: 195
B11: 7.0491 | C11: 7.062 | D11: 11.521 | E11: 11.54 | F11: 00:02:02.401 | G11: 00:02:02.700 | H11: 291 | I11: 1.97 | J11: 3.43 | K11: 6.51 | L11: 9 | R11: 197
B12: 7.0671 | C12: 7.08 | D12: 11.541 | E12: 11.56 | F12: 00:02:02.701 | G12: 00:02:03 | H12: 290 | I12: 1.99 | J12: 3.48 | K12: 6.78 | L12: 10 | R12: 199
B13: 7.0851 | C13: 7.098 | D13: 11.561 | E13: 11.58 | F13: 00:02:03.001 | G13: 00:02:03.300 | H13: 289 | I13: 2.01 | J13: 3.53 | K13: 7.06 | L13: 11 | R13: 201
B14: 7.1031 | C14: 7.116 | D14: 11.581 | E14: 11.6 | F14: 00:02:03.301 | G14: 00:02:03.600 | H14: 288 | I14: 2.02 | J14: 3.58 | K14: 7.34 | L14: 12 | R14: 202
B15: 7.1211 | C15: 7.134 | D15: 11.601 | E15: 11.62 | F15: 00:02:03.601 | G15: 00:02:03.900 | H15: 287 | I15: 2.04 | J15: 3.62 | K15: 7.62 | L15: 13 | R15: 204
B16: 7.1391 | C16: 7.152 | D16: 11.621 | E16: 11.64 | F16: 00:02:03.901 | G16: 00:02:04.200 | H16: 286 | I16: 2.06 | J16: 3.67 | K16: 7.9 | L16: 14 | R16: 206
B17: 7.1571 | C17: 7.17 | D17: 11.641 | E17: 11.67 | F17: 00:02:04.201 | G17: 00:02:04.500 | H17: 285 | I17: 2.08 | J17: 3.72 | K17: 8.18 | L17: 15 | R17: 208
B18: 7.1751 | C18: 7.188 | D18: 11.671 | E18: 11.69 | F18: 00:02:04.501 | G18: 00:02:04.800 | H18: 284 | I18: 2.1 | J18: 3.77 | K18: 8.45 | L18: 16 | R18: 210
B19: 7.1931 | C19: 7.206 | D19: 11.691 | E19: 11.71 | F19: 00:02:04.801 | G19: 00:02:05.100 | H19: 283 | I19: 2.12 | J19: 3.82 | K19: 8.73 | L19: 17 | R19: 212
B20: 7.2111 | C20: 7.224 | D20: 11.711 | E20: 11.73 | F20: 00:02:05.101 | G20: 00:02:05.400 | H20: 282 | I20: 2.14 | J20: 3.86 | K20: 9.01 | L20: 18 | R20: 214
B21: 7.2291 | C21: 7.242 | D21: 11.731 | E21: 11.75 | F21: 00:02:05.401 | G21: 00:02:05.700 | H21: 281 | I21: 2.16 | J21: 3.91 | K21: 9.29 | L21: 19 | R21: 216
B22: 7.2471 | C22: 7.26 | D22: 11.751 | E22: 11.77 | F22: 00:02:05.701 | G22: 00:02:06 | H22: 280 | I22: 2.17 | J22: 3.96 | K22: 9.57 | L22: 20 | R22: 217
B23: 7.2651 | C23: 7.278 | D23: 11.771 | E23: 11.79 | F23: 00:02:06.001 | G23: 00:02:06.300 | H23: 279 | I23: 2.19 | J23: 4.01 | K23: 9.85 | L23: 21 | R23: 219
B24: 7.2831 | C24: 7.296 | D24: 11.791 | E24: 11.81 | F24: 00:02:06.301 | G24: 00:02:06.600 | H24: 278 | I24: 2.21 | J24: 4.06 | K24: 10.12 | L24: 22 | R24: 221
B25: 7.3011 | C25: 7.314 | D25: 11.811 | E25: 11.83 | F25: 00:02:06.601 | G25: 00:02:06.900 | H25: 277 | I25: 2.23 | J25: 4.1 | K25: 10.4 | L25: 23 | R25: 223
B26: 7.3191 | C26: 7.332 | D26: 11.831 | E26: 11.85 | F26: 00:02:06.901 | G26: 00:02:07.200 | H26: 276 | I26: 2.25 | J26: 4.15 | K26: 10.68 | L26: 24 | R26: 225
B27: 7.3371 | C27: 7.35 | D27: 11.851 | E27: 11.88 | F27: 00:02:07.201 | G27: 00:02:07.500 | H27: 275 | I27: 2.27 | J27: 4.2 | K27: 10.96 | L27: 25 | R27: 227
B28: 7.3551 | C28: 7.368 | D28: 11.881 | E28: 11.9 | F28: 00:02:07.501 | G28: 00:02:07.800 | H28: 274 | I28: 2.29 | J28: 4.25 | K28: 11.24 | L28: 26 | R28: 229
B29: 7.3731 | C29: 7.386 | D29: 11.901 | E29: 11.92 | F29: 00:02:07.801 | G29: 00:02:08.100 | H29: 273 | I29: 2.31 | J29: 4.3 | K29: 11.52 | L29: 27 | R29: 231
B30: 7.3911 | C30: 7.404 | D30: 11.921 | E30: 11.94 | F30: 00:02:08.101 | G30: 00:02:08.400 | H30: 272 | I30: 2.32 | J30: 4.34 | K30: 11.8 | L30: 28 | R30: 232
B31: 7.4091 | C31: 7.422 | D31: 11.941 | E31: 11.96 | F31: 00:02:08.401 | G31: 00:02:08.700 | H31: 271 | I31: 2.34 | J31: 4.39 | K31: 12.07 | L31: 29 | R31: 234
B32: 7.4271 | C32: 7.44 | D32: 11.961 | E32: 11.98 | F32: 00:02:08.701 | G32: 00:02:09 | H32: 270 | I32: 2.36 | J32: 4.44 | K32: 12.35 | L32: 30 | R32: 236
B33: 7.4451 | C33: 7.458 | D33: 11.981 | E33: 12 | F33: 00:02:09.001 | G33: 00:02:09.300 | H33: 269 | I33: 2.38 | J33: 4.49 | K33: 12.63 | L33: 31 | R33: 238
B34: 7.4631 | C34: 7.476 | D34: 12.001 | E34: 12.02 | F34: 00:02:09.301 | G34: 00:02:09.600 | H34: 268 | I34: 2.4 | J34: 4.54 | K34: 12.91 | L34: 32 | R34: 240
B35: 7.4811 | C35: 7.494 | D35: 12.021 | E35: 12.04 | F35: 00:02:09.601 | G35: 00:02:09.900 | H35: 267 | I35: 2.42 | J35: 4.58 | K35: 13.19 | L35: 33 | R35: 242
B36: 7.4991 | C36: 7.512 | D36: 12.041 | E36: 12.04 | F36: 00:02:09.901 | G36: 00:02:10.200 | H36: 266 | I36: 2.44 | J36: 4.63 | K36: 13.47 | L36: 34 | R36: 244
B37: 7.5171 | C37: 7.53 | D37: 12.041 | E37: 12.09 | F37: 00:02:10.201 | G37: 00:02:10.500 | H37: 265 | I37: 2.46 | J37: 4.68 | K37: 13.74 | L37: 35 | R37: 246
B38: 7.5351 | C38: 7.548 | D38: 12.091 | E38: 12.11 | F38: 00:02:10.501 | G38: 00:02:10.800 | H38: 264 | I38: 2.47 | J38: 4.73 | K38: 14.02 | L38: 36 | R38: 247
B39: 7.5531 | C39: 7.566 | D39: 12.111 | E39: 12.13 | F39: 00:02:10.801 | G39: 00:02:11.100 | H39: 263 | I39: 2.49 | J39: 4.78 | K39: 14.3 | L39: 37 | R39: 249
B40: 7.5711 | C40: 7.584 | D40: 12.131 | E40: 12.15 | F40: 00:02:11.101 | G40: 00:02:11.400 | H40: 262 | I40: 2.51 | J40: 4.82 | K40: 14.58 | L40: 38 | R40: 251
B41: 7.5891 | C41: 7.602 | D41: 12.151 | E41: 12.17 | F41: 00:02:11.401 | G41: 00:02:11.700 | H41: 261 | I41: 2.53 | J41: 4.87 | K41: 14.86 | L41: 39 | R41: 253
B42: 7.6071 | C42: 7.62 | D42: 12.171 | E42: 12.19 | F42: 00:02:11.701 | G42: 00:02:12 | H42: 260 | I42: 2.55 | J42: 4.92 | K42: 15.14 | L42: 40 | R42: 255
B43: 7.6251 | C43: 7.638 | D43: 12.191 | E43: 12.21 | F43: 00:02:12.001 | G43: 00:02:12.300 | H43: 259 | I43: 2.57 | J43: 4.97 | K43: 15.41 | L43: 41 | R43: 257
B44: 7.6431 | C44: 7.656 | D44: 12.211 | E44: 12.23 | F44: 00:02:12.301 | G44: 00:02:12.600 | H44: 258 | I44: 2.59 | J44: 5.02 | K44: 15.69 | L44: 42 | R44: 259
B45: 7.6611 | C45: 7.674 | D45: 12.231 | E45: 12.25 | F45: 00:02:12.601 | G45: 00:02:12.900 | H45: 257 | I45: 2.61 | J45: 5.06 | K45: 15.97 | L45: 43 | R45: 261
B46: 7.6791 | C46: 7.692 | D46: 12.251 | E46: 12.27 | F46: 00:02:12.901 | G46: 00:02:13.200 | H46: 256 | I46: 2.62 | J46: 5.11 | K46: 16.25 | L46: 44 | R46: 262
B47: 7.6971 | C47: 7.71 | D47: 12.271 | E47: 12.3 | F47: 00:02:13.201 | G47: 00:02:13.500 | H47: 255 | I47: 2.64 | J47: 5.16 | K47: 16.53 | L47: 45 | R47: 264
B48: 7.7151 | C48: 7.728 | D48: 12.301 | E48: 12.32 | F48: 00:02:13.501 | G48: 00:02:13.800 | H48: 254 | I48: 2.66 | J48: 5.21 | K48: 16.81 | L48: 46 | R48: 266
B49: 7.7331 | C49: 7.746 | D49: 12.321 | E49: 12.34 | F49: 00:02:13.801 | G49: 00:02:14.100 | H49: 253 | I49: 2.68 | J49: 5.26 | K49: 17.08 | L49: 47 | R49: 268
B50: 7.7511 | C50: 7.764 | D50: 12.341 | E50: 12.36 | F50: 00:02:14.101 | G50: 00:02:14.400 | H50: 252 | I50: 2.7 | J50: 5.3 | K50: 17.36 | L50: 48 | R50: 270
B51: 7.7691 | C51: 7.782 | D51: 12.361 | E51: 12.38 | F51: 00:02:14.401 | G51: 00:02:14.700 | H51: 251 | I51: 2.72 | J51: 5.35 | K51: 17.64 | L51: 49 | R51: 272
B52: 7.7871 | C52: 7.8 | D52: 12.381 | E52: 12.4 | F52: 00:02:14.701 | G52: 00:02:15 | H52: 250 | I52: 2.73 | J52: 5.4 | K52: 17.92 | L52: 50 | R52: 273
B53: 7.8051 | C53: 7.82 | D53: 12.401 | E53: 12.42 | F53: 00:02:15.001 | G53: 00:02:15.336 | H53: 249 | I53: 2.75 | J53: 5.44 | K53: 18.18 | L53: 51 | R53: 275
B54: 7.8251 | C54: 7.84 | D54: 12.421 | E54: 12.44 | F54: 00:02:15.341 | G54: 00:02:15.672 | H54: 248 | I54: 2.76 | J54: 5.49 | K54: 18.43 | L54: 52 | R54: 276
B55: 7.8451 | C55: 7.85 | D55: 12.441 | E55: 12.46 | F55: 00:02:15.671 | G55: 00:02:16.008 | H55: 247 | I55: 2.78 | J55: 5.53 | K55: 18.69 | L55: 53 | R55: 278
B56: 7.8551 | C56: 7.87 | D56: 12.461 | E56: 12.48 | F56: 00:02:16.011 | G56: 00:02:16.344 | H56: 246 | I56: 2.8 | J56: 5.58 | K56: 18.94 | L56: 54 | R56: 280
B57: 7.8751 | C57: 7.89 | D57: 12.481 | E57: 12.51 | F57: 00:02:16.341 | G57: 00:02:16.680 | H57: 245 | I57: 2.82 | J57: 5.62 | K57: 19.2 | L57: 55 | R57: 282
B58: 7.8951 | C58: 7.91 | D58: 12.511 | E58: 12.53 | F58: 00:02:16.681 | G58: 00:02:17.016 | H58: 244 | I58: 2.83 | J58: 5.66 | K58: 19.45 | L58: 56 | R58: 283
B59: 7.9151 | C59: 7.93 | D59: 12.531 | E59: 12.55 | F59: 00:02:17.021 | G59: 00:02:17.352 | H59: 243 | I59: 2.85 | J59: 5.71 | K59: 19.71 | L59: 57 | R59: 285
B60: 7.9351 | C60: 7.95 | D60: 12.551 | E60: 12.57 | F60: 00:02:17.351 | G60: 00:02:17.688 | H60: 242 | I60: 2.87 | J60: 5.75 | K60: 19.96 | L60: 58 | R60: 287
B61: 7.9551 | C61: 7.96 | D61: 12.571 | E61: 12.59 | F61: 00:02:17.691 | G61: 00:02:18.024 | H61: 241 | I61: 2.88 | J61: 5.8 | K61: 20.22 | L61: 59 | R61: 288
B62: 7.9651 | C62: 7.98 | D62: 12.591 | E62: 12.61 | F62: 00:02:18.021 | G62: 00:02:18.360 | H62: 240 | I62: 2.9 | J62: 5.84 | K62: 20.47 | L62: 60 | R62: 290
B63: 7.9851 | C63: 8 | D63: 12.611 | E63: 12.63 | F63: 00:02:18.361 | G63: 00:02:18.696 | H63: 239 | I63: 2.92 | J63: 5.88 | K63: 20.73 | L63: 61 | R63: 292
B64: 8.0051 | C64: 8.02 | D64: 12.631 | E64: 12.65 | F64: 00:02:18.701 | G64: 00:02:19.032 | H64: 238 | I64: 2.94 | J64: 5.93 | K64: 20.98 | L64: 62 | R64: 294
B65: 8.0251 | C65: 8.04 | D65: 12.651 | E65: 12.68 | F65: 00:02:19.031 | G65: 00:02:19.368 | H65: 237 | I65: 2.95 | J65: 5.97 | K65: 21.24 | L65: 63 | R65: 295
B66: 8.0451 | C66: 8.05 | D66: 12.681 | E66: 12.7 | F66: 00:02:19.371 | G66: 00:02:19.704 | H66: 236 | I66: =R66/100 -> 2.97 | J66: 6.02 | K66: 21.49 | L66: 64 | R66: 297
B67: 8.0551 | C67: 8.07 | D67: 12.701 | E67: 12.72 | F67: 00:02:19.701 | G67: 00:02:20.040 | H67: 235 | I67: 2.99 | J67: 6.06 | K67: 21.75 | L67: 65 | R67: 299
B68: 8.0751 | C68: 8.09 | D68: 12.721 | E68: 12.74 | F68: 00:02:20.041 | G68: 00:02:20.376 | H68: 234 | I68: 3 | J68: 6.1 | K68: 22 | L68: 66 | R68: 300
B69: 8.0951 | C69: 8.11 | D69: 12.741 | E69: 12.76 | F69: 00:02:20.381 | G69: 00:02:20.712 | H69: 233 | I69: 3.02 | J69: 6.15 | K69: 22.26 | L69: 67 | R69: 302
B70: 8.1151 | C70: 8.13 | D70: 12.761 | E70: 12.78 | F70: 00:02:20.711 | G70: 00:02:21.048 | H70: 232 | I70: 3.04 | J70: 6.19 | K70: 22.51 | L70: 68 | R70: 304
B71: 8.1351 | C71: 8.15 | D71: 12.781 | E71: 12.8 | F71: 00:02:21.049 | G71: 00:02:21.384 | H71: 231 | I71: 3.06 | J71: 6.24 | K71: 22.77 | L71: 69 | R71: 306
B72: 8.1551 | C72: 8.16 | D72: 12.801 | E72: 12.82 | F72: 00:02:21.386 | G72: 00:02:21.720 | H72: 230 | I72: 3.07 | J72: 6.28 | K72: 23.02 | L72: 70 | R72: 307
B73: 8.1651 | C73: 8.18 | D73: 12.821 | E73: 12.85 | F73: 00:02:21.722 | G73: 00:02:22.056 | H73: 229 | I73: 3.09 | J73: 6.32 | K73: 23.28 | L73: 71 | R73: 309
B74: 8.1851 | C74: 8.2 | D74: 12.851 | E74: 12.87 | F74: 00:02:22.261 | G74: 00:02:22.392 | H74: 228 | I74: 3.11 | J74: 6.37 | K74: 23.53 | L74: 72 | R74: 311
B75: 8.2051 | C75: 8.22 | D75: 12.871 | E75: 12.89 | F75: 00:02:22.395 | G75: 00:02:22.728 | H75: 227 | I75: 3.12 | J75: 6.41 | K75: 23.79 | L75: 73 | R75: 312
B76: 8.2251 | C76: 8.24 | D76: 12.891 | E76: 12.91 | F76: 00:02:22.731 | G76: 00:02:23.064 | H76: 226 | I76: 3.14 | J76: 6.46 | K76: 24.04 | L76: 74 | R76: 314
B77: 8.2451 | C77: 8.26 | D77: 12.911 | E77: 12.93 | F77: 00:02:23.066 | G77: 00:02:23.400 | H77: 225 | I77: 3.16 | J77: 6.5 | K77: 24.3 | L77: 75 | R77: 316
B78: 8.2651 | C78: 8.27 | D78: 12.931 | E78: 12.95 | F78: 00:02:23.402 | G78: 00:02:23.736 | H78: 224 | I78: 3.18 | J78: 6.54 | K78: 24.56 | L78: 76 | R78: 318
B79: 8.2751 | C79: 8.29 | D79: 12.951 | E79: 12.97 | F79: 00:02:23.741 | G79: 00:02:24.072 | H79: 223 | I79: 3.19 | J79: 6.59 | K79: 24.81 | L79: 77 | R79: 319
B80: 8.2951 | C80: 8.31 | D80: 12.971 | E80: 12.99 | F80: 00:02:24.073 | G80: 00:02:24.408 | H80: 222 | I80: 3.21 | J80: 6.63 | K80: 25.07 | L80: 78 | R80: 321
B81: 8.3151 | C81: 8.33 | D81: 12.991 | E81: 13.01 | F81: 00:02:24.411 | G81: 00:02:24.744 | H81: 221 | I81: 3.23 | J81: 6.68 | K81: 25.32 | L81: 79 | R81: 323
B82: 8.3351 | C82: 8.35 | D82: 13.011 | E82: 13.04 | F82: 00:02:24.745 | G82: 00:02:25.080 | H82: 220 | I82: 3.24 | J82: 6.72 | K82: 25.58 | L82: 80 | R82: 324
B83: 8.3551 | C83: 8.36 | D83: 13.041 | E83: 13.06 | F83: 00:02:25.081 | G83: 00:02:25.416 | H83: 219 | I83: 3.26 | J83: 6.76 | K83: 25.83 | L83: 81 | R83: 326
B84: 8.3651 | C84: 8.38 | D84: 13.061 | E84: 13.08 | F84: 00:02:25.421 | G84: 00:02:25.752 | H84: 218 | I84: 3.28 | J84: 6.81 | K84: 26.09 | L84: 82 | R84: 328
B85: 8.3851 | C85: 8.4 | D85: 13.081 | E85: 13.1 | F85: 00:02:25.757 | G85: 00:02:26.088 | H85: 217 | I85: 3.3 | J85: 6.85 | K85: 26.34 | L85: 83 | R85: 330
B86: 8.4051 | C86: 8.42 | D86: 13.101 | E86: 13.12 | F86: 00:02:26.093 | G86: 00:02:26.424 | H86: 216 | I86: 3.31 | J86: 6.9 | K86: 26.6 | L86: 84 | R86: 331
B87: 8.4251 | C87: 8.44 | D87: 13.121 | E87: 13.14 | F87: 00:02:26.429 | G87: 00:02:26.760 | H87: 215 | I87: 3.33 | J87: 6.94 | K87: 26.85 | L87: 85 | R87: 333
B88: 8.4451 | C88: 8.46 | D88: 13.141 | E88: 13.16 | F88: 00:02:26.765 | G88: 00:02:27.096 | H88: 214 | I88: 3.35 | J88: 6.98 | K88: 27.11 | L88: 86 | R88: 335
B89: 8.4651 | C89: 8.47 | D89: 13.161 | E89: 13.18 | F89: 00:02:27.101 | G89: 00:02:27.432 | H89: 213 | I89: 3.36 | J89: 7.03 | K89: 27.36 | L89: 87 | R89: 336
B90: 8.4751 | C90: 8.49 | D90: 13.181 | E90: 13.21 | F90: 00:02:27.437 | G90: 00:02:27.768 | H90: 212 | I90: 3.38 | J90: 7.07 | K90: 27.62 | L90: 88 | R90: 338
B91: 8.4951 | C91: 8.51 | D91: 13.211 | E91: 13.23 | F91: 00:02:27.773 | G91: 00:02:28.104 | H91: 211 | I91: 3.4 | J91: 7.12 | K91: 27.87 | L91: 89 | R91: 340
B92: 8.5151 | C92: 8.53 | D92: 13.231 | E92: 13.25 | F92: 00:02:28.109 | G92: 00:02:28.440 | H92: 210 | I92: 3.42 | J92: 7.16 | K92: 28.13 | L92: 90 | R92: 342
B93: 8.5351 | C93: 8.55 | D93: 13.251 | E93: 13.27 | F93: 00:02:28.445 | G93: 00:02:28.776 | H93: 209 | I93: 3.43 | J93: 7.2 | K93: 28.38 | L93: 91 | R93: 343
B94: 8.5551 | C94: 8.56 | D94: 13.271 | E94: 13.29 | F94: 00:02:28.781 | G94: 00:02:29.112 | H94: 208 | I94: 3.45 | J94: 7.25 | K94: 28.64 | L94: 92 | R94: 345
B95: 8.5651 | C95: 8.58 | D95: 13.291 | E95: 13.31 | F95: 00:02:29.117 | G95: 00:02:29.448 | H95: 207 | I95: 3.47 | J95: 7.29 | K95: 28.89 | L95: 93 | R95: 347
B96: 8.5851 | C96: 8.6 | D96: 13.311 | E96: 13.33 | F96: 00:02:29.453 | G96: 00:02:29.784 | H96: 206 | I96: 3.49 | J96: 7.34 | K96: 29.15 | L96: 94 | R96: 349
B97: 8.6051 | C97: 8.62 | D97: 13.331 | E97: 13.35 | F97: 00:02:29.789 | G97: 00:02:30.120 | H97: 205 | I97: 3.5 | J97: 7.38 | K97: 29.4 | L97: 95 | R97: 350
B98: 8.6251 | C98: 8.64 | D98: 13.351 | E98: 13.38 | F98: 00:02:30.125 | G98: 00:02:30.456 | H98: 204 | I98: 3.52 | J98: 7.42 | K98: 29.66 | L98: 96 | R98: 352
B99: 8.6451 | C99: 8.66 | D99: 13.381 | E99: 13.4 | F99: 00:02:30.461 | G99: 00:02:30.792 | H99: 203 | I99: 3.54 | J99: 7.47 | K99: 29.91 | L99: 97 | R99: 354
B100: 8.6651 | C100: 8.67 | D100: 13.401 | E100: 13.42 | F100: 00:02:30.797 | G100: 00:02:31.128 | H100: 202 | I100: 3.55 | J100: 7.51 | K100: 30.17 | L100: 98 | R100: 355
B101: 8.6751 | C101: 8.69 | D101: 13.421 | E101: 13.44 | F101: 00:02:31.133 | G101: 00:02:31.464 | H101: 201 | I101: 3.57 | J101: 7.56 | K101: 30.42 | L101: 99 | R101: 357
B102: 8.6951 | C102: 8.71 | D102: 13.441 | E102: 13.46 | F102: 00:02:31.469 | G102: 00:02:31.800 | H102: 200 | I102: 3.59 | J102: 7.6 | K102: 30.68 | L102: 100 | R102: 359
B103: 8.7151 | C103: 8.73 | D103: 13.461 | E103: 13.48 | F103: 00:02:31.805 | G103: 00:02:32.178 | H103: 199 | I103: 3.61 | J103: 7.64 | K103: 30.91 | L103: 101 | R103: 361
B104: 8.7351 | C104: 8.75 | D104: 13.481 | E104: 13.51 | F104: 00:02:32.183 | G104: 00:02:32.556 | H104: 198 | I104: 3.62 | J104: 7.68 | K104: 31.14 | L104: 102 | R104: 362
B105: 8.7551 | C105: 8.77 | D105: 13.511 | E105: 13.53 | F105: 00:02:32.561 | G105: 00:02:32.934 | H105: 197 | I105: 3.64 | J105: 7.72 | K105: 31.38 | L105: 103 | R105: 364
B106: 8.7751 | C106: 8.79 | D106: 13.531 | E106: 13.55 | F106: 00:02:32.939 | G106: 00:02:33.312 | H106: 196 | I106: 3.65 | J106: 7.76 | K106: 31.61 | L106: 104 | R106: 365
B107: 8.7951 | C107: 8.81 | D107: 13.551 | E107: 13.58 | F107: 00:02:33.317 | G107: 00:02:33.690 | H107: 195 | I107: 3.67 | J107: 7.8 | K107: 31.84 | L107: 105 | R107: 367
B108: 8.8151 | C108: 8.83 | D108: 13.581 | E108: 13.6 | F108: 00:02:33.695 | G108: 00:02:34.068 | H108: 194 | I108: 3.68 | J108: 7.84 | K108: 32.07 | L108: 106 | R108: 368
B109: 8.8351 | C109: 8.85 | D109: 13.601 | E109: 13.63 | F109: 00:02:34.073 | G109: 00:02:34.446 | H109: 193 | I109: 3.7 | J109: 7.88 | K109: 32.3 | L109: 107 | R109: 370
B110: 8.8551 | C110: 8.87 | D110: 13.631 | E110: 13.65 | F110: 00:02:34.451 | G110: 00:02:34.824 | H110: 192 | I110: 3.71 | J110: 7.92 | K110: 32.54 | L110: 108 | R110: 371
B111: 8.8751 | C111: 8.9 | D111: 13.651 | E111: 13.67 | F111: 00:02:34.829 | G111: 00:02:35.202 | H111: 191 | I111: 3.73 | J111: 7.96 | K111: 32.77 | L111: 109 | R111: 373
B112: 8.9051 | C112: 8.92 | D112: 13.671 | E112: 13.7 | F112: 00:02:35.207 | G112: 00:02:35.580 | H112: 190 | I112: 3.75 | J112: 8 | K112: 33 | L112: 110 | R112: 375
B113: 8.9251 | C113: 8.94 | D113: 13.701 | E113: 13.72 | F113: 00:02:35.585 | G113: 00:02:35.958 | H113: 189 | I113: 3.76 | J113: 8.04 | K113: 33.23 | L113: 111 | R113: 376
B114: 8.9451 | C114: 8.96 | D114: 13.721 | E114: 13.74 | F114: 00:02:35.963 | G114: 00:02:36.336 | H114: 188 | I114: 3.78 | J114: 8.08 | K114: 33.46 | L114: 112 | R114: 378
B115: 8.9651 | C115: 8.98 | D115: 13.741 | E115: 13.77 | F115: 00:02:36.341 | G115: 00:02:36.714 | H115: 187 | I115: 3.79 | J115: 8.12 | K115: 33.7 | L115: 113 | R115: 379
B116: 8.9851 | C116: 9 | D116: 13.771 | E116: 13.79 | F116: 00:02:36.719 | G116: 00:02:37.092 | H116: 186 | I116: 3.81 | J116: 8.16 | K116: 33.93 | L116: 114 | R116: 381
B117: 9.0051 | C117: 9.02 | D117: 13.791 | E117: 13.81 | F117: 00:02:37.097 | G117: 00:02:37.470 | H117: 185 | I117: 3.82 | J117: 8.2 | K117: 34.16 | L117: 115 | R117: 382
B118: 9.0251 | C118: 9.04 | D118: 13.811 | E118: 13.84 | F118: 00:02:37.475 | G118: 00:02:37.848 | H118: 184 | I118: 3.84 | J118: 8.24 | K118: 34.39 | L118: 116 | R118: 384
B119: 9.0451 | C119: 9.06 | D119: 13.841 | E119: 13.86 | F119: 00:02:37.853 | G119: 00:02:38.226 | H119: 183 | I119: 3.86 | J119: 8.28 | K119: 34.62 | L119: 117 | R119: 386
B120: 9.0651 | C120: 9.08 | D120: 13.861 | E120: 13.88 | F120: 00:02:38.231 | G120: 00:02:38.604 | H120: 182 | I120: 3.87 | J120: 8.32 | K120: 34.86 | L120: 118 | R120: 387
B121: 9.0851 | C121: 9.1 | D121: 13.881 | E121: 13.91 | F121: 00:02:38.609 | G121: 00:02:38.982 | H121: 181 | I121: 3.89 | J121: 8.36 | K121: 35.09 | L121: 119 | R121: 389
B122: 9.1051 | C122: 9.12 | D122: 13.911 | E122: 13.93 | F122: 00:02:38.987 | G122: 00:02:39.360 | H122: 180 | I122: 3.9 | J122: 8.4 | K122: 35.32 | L122: 120 | R122: 390
B123: 9.1251 | C123: 9.14 | D123: 13.931 | E123: 13.96 | F123: 00:02:39.365 | G123: 00:02:39.738 | H123: 179 | I123: 3.92 | J123: 8.44 | K123: 35.55 | L123: 121 | R123: 392
B124: 9.1451 | C124: 9.16 | D124: 13.961 | E124: 13.98 | F124: 00:02:39.743 | G124: 00:02:40.116 | H124: 178 | I124: 3.93 | J124: 8.48 | K124: 35.78 | L124: 122 | R124: 393
B125: 9.1651 | C125: 9.18 | D125: 13.981 | E125: 14 | F125: 00:02:40.121 | G125: 00:02:40.494 | H125: 177 | I125: 3.95 | J125: 8.52 | K125: 36.02 | L125: 123 | R125: 395
B126: 9.1851 | C126: 9.2 | D126: 14.001 | E126: 14.03 | F126: 00:02:40.499 | G126: 00:02:40.872 | H126: 176 | I126: 3.96 | J126: 8.56 | K126: 36.25 | L126: 124 | R126: 396
B127: 9.2051 | C127: 9.23 | D127: 14.031 | E127: 14.05 | F127: 00:02:40.877 | G127: 00:02:41.250 | H127: 175 | I127: 3.98 | J127: 8.6 | K127: 36.48 | L127: 125 | R127: 398
B128: 9.2351 | C128: 9.25 | D128: 14.051 | E128: 14.07 | F128: 00:02:41.255 | G128: 00:02:41.628 | H128: 174 | I128: 4 | J128: 8.64 | K128: 36.71 | L128: 126 | R128: 400
B129: 9.2551 | C129: 9.27 | D129: 14.071 | E129: 14.1 | F129: 00:02:41.633 | G129: 00:02:42.006 | H129: 173 | I129: 4.01 | J129: 8.68 | K129: 36.94 | L129: 127 | R129: 401
B130: 9.2751 | C130: 9.29 | D130: 14.101 | E130: 14.12 | F130: 00:02:42.011 | G130: 00:02:42.384 | H130: 172 | I130: =R130/100 -> 4.03 | J130: 8.72 | K130: 37.18 | L130: 128 | R130: 403
B131: 9.2951 | C131: 9.31 | D131: 14.121 | E131: 14.14 | F131: 00:02:42.389 | G131: 00:02:42.762 | H131: 171 | I131: 4.04 | J131: 8.76 | K131: 37.41 | L131: 129 | R131: 404
B132: 9.3151 | C132: 9.33 | D132: 14.141 | E132: 14.17 | F132: 00:02:42.767 | G132: 00:02:43.140 | H132: 170 | I132: 4.06 | J132: 8.8 | K132: 37.64 | L132: 130 | R132: 406
B133: 9.3351 | C133: 9.35 | D133: 14.171 | E133: 14.19 | F133: 00:02:43.145 | G133: 00:02:43.518 | H133: 169 | I133: 4.07 | J133: 8.84 | K133: 37.87 | L133: 131 | R133: 407
B134: 9.3551 | C134: 9.37 | D134: 14.191 | E134: 14.22 | F134: 00:02:43.523 | G134: 00:02:43.896 | H134: 168 | I134: 4.09 | J134: 8.88 | K134: 38.1 | L134: 132 | R134: 409
B135: 9.3751 | C135: 9.39 | D135: 14.221 | E135: 14.24 | F135: 00:02:43.901 | G135: 00:02:44.274 | H135: 167 | I135: 4.1 | J135: 8.92 | K135: 38.34 | L135: 133 | R135: 410
B136: 9.3951 | C136: 9.41 | D136: 14.241 | E136: 14.26 | F136: 00:02:44.279 | G136: 00:02:44.652 | H136: 166 | I136: 4.12 | J136: 8.96 | K136: 38.57 | L136: 134 | R136: 412
B137: 9.4151 | C137: 9.43 | D137: 14.261 | E137: 14.29 | F137: 00:02:44.657 | G137: 00:02:45.030 | H137: 165 | I137: 4.14 | J137: 9 | K137: 38.8 | L137: 135 | R137: 414
B138: 9.4351 | C138: 9.45 | D138: 14.291 | E138: 14.31 | F138: 00:02:45.035 | G138: 00:02:45.408 | H138: 164 | I138: 4.15 | J138: 9.04 | K138: 39.03 | L138: 136 | R138: 415
B139: 9.4551 | C139: 9.47 | D139: 14.311 | E139: 14.33 | F139: 00:02:45.413 | G139: 00:02:45.786 | H139: 163 | I139: 4.17 | J139: 9.08 | K139: 39.26 | L139: 137 | R139: 417
B140: 9.4751 | C140: 9.49 | D140: 14.331 | E140: 14.36 | F140: 00:02:45.791 | G140: 00:02:46.164 | H140: 162 | I140: 4.18 | J140: 9.12 | K140: 39.5 | L140: 138 | R140: 418
B141: 9.4951 | C141: 9.51 | D141: 14.361 | E141: 14.38 | F141: 00:02:46.169 | G141: 00:02:46.542 | H141: 161 | I141: 4.2 | J141: 9.16 | K141: 39.73 | L141: 139 | R141: 420
B142: 9.5151 | C142: 9.53 | D142: 14.381 | E142: 14.4 | F142: 00:02:46.547 | G142: 00:02:46.920 | H142: 160 | I142: 4.21 | J142: 9.2 | K142: 39.96 | L142: 140 | R142: 421
B143: 9.5351 | C143: 9.55 | D143: 14.401 | E143: 14.43 | F143: 00:02:46.925 | G143: 00:02:47.298 | H143: 159 | I143: 4.23 | J143: 9.24 | K143: 40.19 | L143: 141 | R143: 423
B144: 9.5551 | C144: 9.58 | D144: 14.431 | E144: 14.45 | F144: 00:02:47.303 | G144: 00:02:47.676 | H144: 158 | I144: 4.25 | J144: 9.28 | K144: 40.42 | L144: 142 | R144: 425
B145: 9.5851 | C145: 9.6 | D145: 14.451 | E145: 14.47 | F145: 00:02:47.681 | G145: 00:02:48.054 | H145: 157 | I145: 4.26 | J145: 9.32 | K145: 40.66 | L145: 143 | R145: 426
B146: 9.6051 | C146: 9.62 | D146: 14.471 | E146: 14.5 | F146: 00:02:48.059 | G146: 00:02:48.432 | H146: 156 | I146: 4.28 | J146: 9.36 | K146: 40.89 | L146: 144 | R146: 428
B147: 9.6251 | C147: 9.64 | D147: 14.501 | E147: 14.52 | F147: 00:02:48.437 | G147: 00:02:48.810 | H147: 155 | I147: 4.29 | J147: 9.4 | K147: 41.12 | L147: 145 | R147: 429
B148: 9.6451 | C148: 9.66 | D148: 14.521 | E148: 14.55 | F148: 00:02:48.815 | G148: 00:02:49.188 | H148: 154 | I148: 4.31 | J148: 9.44 | K148: 41.35 | L148: 146 | R148: 431
B149: 9.6651 | C149: 9.68 | D149: 14.551 | E149: 14.57 | F149: 00:02:49.193 | G149: 00:02:49.566 | H149: 153 | I149: 4.32 | J149: 9.48 | K149: 41.58 | L149: 147 | R149: 432
B150: 9.6851 | C150: 9.7 | D150: 14.571 | E150: 14.59 | F150: 00:02:49.571 | G150: 00:02:49.944 | H150: 152 | I150: 4.34 | J150: 9.52 | K150: 41.82 | L150: 148 | R150: 434
B151: 9.7051 | C151: 9.72 | D151: 14.591 | E151: 14.62 | F151: 00:02:49.949 | G151: 00:02:50.322 | H151: 151 | I151: 4.35 | J151: 9.56 | K151: 42.05 | L151: 149 | R151: 435
B152: 9.7251 | C152: 9.74 | D152: 14.621 | E152: 14.64 | F152: 00:02:50.327 | G152: 00:02:50.700 | H152: 150 | I152: 4.37 | J152: 9.6 | K152: 42.28 | L152: 150 | R152: 437
B153: 9.7451 | C153: 9.76 | D153: 14.641 | E153: 14.67 | F153: 00:02:50.705 | G153: 00:02:51.120 | H153: 149 | I153: 4.38 | J153: 9.64 | K153: 42.49 | L153: 151 | R153: 438
B154: 9.7651 | C154: 9.79 | D154: 14.671 | E154: 14.69 | F154: 00:02:51.125 | G154: 00:02:51.540 | H154: 148 | I154: 4.4 | J154: 9.67 | K154: 42.7 | L154: 152 | R154: 440
B155: 9.7951 | C155: 9.81 | D155: 14.691 | E155: 14.72 | F155: 00:02:51.545 | G155: 00:02:51.960 | H155: 147 | I155: 4.41 | J155: 9.71 | K155: 42.91 | L155: 153 | R155: 441
B156: 9.8151 | C156: 9.83 | D156: 14.721 | E156: 14.75 | F156: 00:02:51.965 | G156: 00:02:52.380 | H156: 146 | I156: 4.43 | J156: 9.74 | K156: 43.12 | L156: 154 | R156: 443
B157: 9.8351 | C157: 9.85 | D157: 14.751 | E157: 14.77 | F157: 00:02:52.385 | G157: 00:02:52.800 | H157: 145 | I157: 4.44 | J157: 9.78 | K157: 43.32 | L157: 155 | R157: 444
B158: 9.8551 | C158: 9.88 | D158: 14.771 | E158: 14.8 | F158: 00:02:52.805 | G158: 00:02:53.220 | H158: 144 | I158: 4.45 | J158: 9.82 | K158: 43.53 | L158: 156 | R158: 445
B159: 9.8851 | C159: 9.9 | D159: 14.801 | E159: 14.82 | F159: 00:02:53.225 | G159: 00:02:53.640 | H159: 143 | I159: 4.47 | J159: 9.85 | K159: 43.74 | L159: 157 | R159: 447
B160: 9.9051 | C160: 9.92 | D160: 14.821 | E160: 14.85 | F160: 00:02:53.645 | G160: 00:02:54.060 | H160: 142 | I160: 4.48 | J160: 9.89 | K160: 43.95 | L160: 158 | R160: 448
B161: 9.9251 | C161: 9.95 | D161: 14.851 | E161: 14.88 | F161: 00:02:54.065 | G161: 00:02:54.480 | H161: 141 | I161: 4.5 | J161: 9.92 | K161: 44.16 | L161: 159 | R161: 450
B162: 9.9551 | C162: 9.97 | D162: 14.881 | E162: 14.9 | F162: 00:02:54.485 | G162: 00:02:54.900 | H162: 140 | I162: 4.51 | J162: 9.96 | K162: 44.37 | L162: 160 | R162: 451
B163: 9.9751 | C163: 9.99 | D163: 14.901 | E163: 14.93 | F163: 00:02:54.905 | G163: 00:02:55.320 | H163: 139 | I163: 4.52 | J163: 10 | K163: 44.58 | L163: 161 | R163: 452
B164: 9.9951 | C164: 10.01 | D164: 14.931 | E164: 14.96 | F164: 00:02:55.325 | G164: 00:02:55.740 | H164: 138 | I164: 4.54 | J164: 10.03 | K164: 44.79 | L164: 162 | R164: 454
B165: 10.0151 | C165: 10.04 | D165: 14.961 | E165: 14.98 | F165: 00:02:55.745 | G165: 00:02:56.160 | H165: 137 | I165: 4.55 | J165: 10.07 | K165: 44.99 | L165: 163 | R165: 455
B166: 10.0451 | C166: 10.06 | D166: 14.981 | E166: 15.01 | F166: 00:02:56.165 | G166: 00:02:56.580 | H166: 136 | I166: 4.57 | J166: 10.1 | K166: 45.2 | L166: 164 | R166: 457
B167: 10.0651 | C167: 10.08 | D167: 15.011 | E167: 15.04 | F167: 00:02:56.585 | G167: 00:02:57 | H167: 135 | I167: 4.58 | J167: 10.14 | K167: 45.41 | L167: 165 | R167: 458
B168: 10.0851 | C168: 10.1 | D168: 15.041 | E168: 15.06 | F168: 00:02:57.005 | G168: 00:02:57.420 | H168: 134 | I168: 4.59 | J168: 10.18 | K168: 45.62 | L168: 166 | R168: 459
B169: 10.1051 | C169: 10.13 | D169: 15.061 | E169: 15.09 | F169: 00:02:57.425 | G169: 00:02:57.840 | H169: 133 | I169: 4.61 | J169: 10.21 | K169: 45.83 | L169: 167 | R169: 461
B170: 10.1351 | C170: 10.15 | D170: 15.091 | E170: 15.12 | F170: 00:02:57.845 | G170: 00:02:58.260 | H170: 132 | I170: 4.62 | J170: 10.25 | K170: 46.04 | L170: 168 | R170: 462
B171: 10.1551 | C171: 10.17 | D171: 15.121 | E171: 15.14 | F171: 00:02:58.265 | G171: 00:02:58.680 | H171: 131 | I171: 4.64 | J171: 10.28 | K171: 46.25 | L171: 169 | R171: 464
B172: 10.1751 | C172: 10.2 | D172: 15.141 | E172: 15.17 | F172: 00:02:58.685 | G172: 00:02:59.100 | H172: 130 | I172: 4.65 | J172: 10.32 | K172: 46.46 | L172: 170 | R172: 465
B173: 10.2051 | C173: 10.22 | D173: 15.171 | E173: 15.19 | F173: 00:02:59.105 | G173: 00:02:59.520 | H173: 129 | I173: 4.66 | J173: 10.36 | K173: 46.66 | L173: 171 | R173: 466
B174: 10.2251 | C174: 10.24 | D174: 15.191 | E174: 15.22 | F174: 00:02:59.525 | G174: 00:02:59.940 | H174: 128 | I174: 4.68 | J174: 10.39 | K174: 46.87 | L174: 172 | R174: 468
B175: 10.2451 | C175: 10.26 | D175: 15.221 | E175: 15.25 | F175: 00:02:59.945 | G175: 00:03:00.360 | H175: 127 | I175: 4.69 | J175: 10.43 | K175: 47.08 | L175: 173 | R175: 469
B176: 10.2651 | C176: 10.29 | D176: 15.251 | E176: 15.27 | F176: 00:03:00.365 | G176: 00:03:00.780 | H176: 126 | I176: 4.71 | J176: 10.46 | K176: 47.29 | L176: 174 | R176: 471
B177: 10.2951 | C177: 10.31 | D177: 15.271 | E177: 15.3 | F177: 00:03:00.785 | G177: 00:03:01.200 | H177: 125 | I177: 4.72 | J177: 10.5 | K177: 47.5 | L177: 175 | R177: 472
B178: 10.3151 | C178: 10.33 | D178: 15.301 | E178: 15.33 | F178: 00:03:01.205 | G178: 00:03:01.620 | H178: 124 | I178: 4.74 | J178: 10.54 | K178: 47.71 | L178: 176 | R178: 474
B179: 10.3351 | C179: 10.36 | D179: 15.331 | E179: 15.35 | F179: 00:03:01.625 | G179: 00:03:02.040 | H179: 123 | I179: 4.75 | J179: 10.57 | K179: 47.92 | L179: 177 | R179: 475
B180: 10.3651 | C180: 10.38 | D180: 15.351 | E180: 15.38 | F180: 00:03:02.045 | G180: 00:03:02.460 | H180: 122 | I180: 4.76 | J180: 10.61 | K180: 48.13 | L180: 178 | R180: 476
B181: 10.3851 | C181: 10.4 | D181: 15.381 | E181: 15.41 | F181: 00:03:02.465 | G181: 00:03:02.880 | H181: 121 | I181: 4.78 | J181: 10.64 | K181: 48.34 | L181: 179 | R181: 478
B182: 10.4051 | C182: 10.42 | D182: 15.411 | E182: 15.43 | F182: 00:03:02.885 | G182: 00:03:03.300 | H182: 120 | I182: 4.79 | J182: 10.68 | K182: 48.54 | L182: 180 | R182: 479
B183: 10.4251 | C183: 10.45 | D183: 15.431 | E183: 15.46 | F183: 00:03:03.305 | G183: 00:03:03.720 | H183: 119 | I183: 4.81 | J183: 10.72 | K183: 48.75 | L183: 181 | R183: 481
B184: 10.4551 | C184: 10.47 | D184: 15.461 | E184: 15.48 | F184: 00:03:03.725 | G184: 00:03:04.140 | H184: 118 | I184: 4.82 | J184: 10.75 | K184: 48.96 | L184: 182 | R184: 482
B185: 10.4751 | C185: 10.49 | D185: 15.481 | E185: 15.51 | F185: 00:03:04.145 | G185: 00:03:04.560 | H185: 117 | I185: 4.83 | J185: 10.79 | K185: 49.17 | L185: 183 | R185: 483
B186: 10.4951 | C186: 10.52 | D186: 15.511 | E186: 15.54 | F186: 00:03:04.565 | G186: 00:03:04.980 | H186: 116 | I186: 4.85 | J186: 10.82 | K186: 49.38 | L186: 184 | R186: 485
B187: 10.5251 | C187: 10.54 | D187: 15.541 | E187: 15.56 | F187: 00:03:04.985 | G187: 00:03:05.400 | H187: 115 | I187: 4.86 | J187: 10.86 | K187: 49.59 | L187: 185 | R187: 486
B188: 10.5451 | C188: 10.56 | D188: 15.561 | E188: 15.59 | F188: 00:03:05.405 | G188: 00:03:05.820 | H188: 114 | I188: 4.88 | J188: 10.9 | K188: 49.8 | L188: 186 | R188: 488
B189: 10.5651 | C189: 10.58 | D189: 15.591 | E189: 15.62 | F189: 00:03:05.825 | G189: 00:03:06.240 | H189: 113 | I189: 4.89 | J189: 10.93 | K189: 50.01 | L189: 187 | R189: 489
B190: 10.5851 | C190: 10.61 | D190: 15.621 | E190: 15.64 | F190: 00:03:06.245 | G190: 00:03:06.660 | H190: 112 | I190: 4.9 | J190: 10.97 | K190: 50.21 | L190: 188 | R190: 490
B191: 10.6151 | C191: 10.63 | D191: 15.641 | E191: 15.67 | F191: 00:03:06.665 | G191: 00:03:07.080 | H191: 111 | I191: 4.92 | J191: 11 | K191: 50.42 | L191: 189 | R191: 492
B192: 10.6351 | C192: 10.65 | D192: 15.671 | E192: 15.7 | F192: 00:03:07.085 | G192: 00:03:07.500 | H192: 110 | I192: 4.93 | J192: 11.04 | K192: 50.63 | L192: 190 | R192: 493
B193: 10.6551 | C193: 10.67 | D193: 15.701 | E193: 15.72 | F193: 00:03:07.505 | G193: 00:03:07.920 | H193: 109 | I193: 4.95 | J193: 11.08 | K193: 50.84 | L193: 191 | R193: 495
B194: 10.6751 | C194: 10.7 | D194: 15.721 | E194: 15.75 | F194: 00:03:07.925 | G194: 00:03:08.340 | H194: 108 | I194: =R194/100 -> 4.96 | J194: 11.11 | K194: 51.05 | L194: 192 | R194: 496
B195: 10.7051 | C195: 10.72 | D195: 15.751 | E195: 15.78 | F195: 00:03:08.345 | G195: 00:03:08.760 | H195: 107 | I195: 4.97 | J195: 11.15 | K195: 51.26 | L195: 193 | R195: 497
B196: 10.7251 | C196: 10.74 | D196: 15.781 | E196: 15.8 | F196: 00:03:08.765 | G196: 00:03:09.180 | H196: 106 | I196: 4.99 | J196: 11.18 | K196: 51.47 | L196: 194 | R196: 499
B197: 10.7451 | C197: 10.77 | D197: 15.801 | E197: 15.83 | F197: 00:03:09.185 | G197: 00:03:09.600 | H197: 105 | I197: 5 | J197: 11.22 | K197: 51.68 | L197: 195 | R197: 500
B198: 10.7751 | C198: 10.79 | D198: 15.831 | E198: 15.85 | F198: 00:03:09.605 | G198: 00:03:10.020 | H198: 104 | I198: 5.02 | J198: 11.26 | K198: 51.88 | L198: 196 | R198: 502
B199: 10.7951 | C199: 10.81 | D199: 15.851 | E199: 15.88 | F199: 00:03:10.025 | G199: 00:03:10.440 | H199: 103 | I199: 5.03 | J199: 11.29 | K199: 52.09 | L199: 197 | R199: 503
B200: 10.8151 | C200: 10.83 | D200: 15.881 | E200: 15.91 | F200: 00:03:10.445 | G200: 00:03:10.860 | H200: 102 | I200: 5.04 | J200: 11.33 | K200: 52.3 | L200: 198 | R200: 504
... 102 more rows

Sheet Be
A1: Kis iskolák LEÁNY egyéni és csapatversenye
A3: Név | B3: Sz.év | C3: Kcs. | D3: R. fut | F3: Távolugrás | H3: Klabdahajítás | J3: Összpont | K3: helyezés | L3: Iskola
C4: I-II. | E4: =IF(D4<6.19,0,VLOOKUP(D4,rrfut,7,TRUE)) -> 0 | G4: =IF(F4<1.79,0,VLOOKUP(F4,távol,4,TRUE)) -> 0 | I4: =IF(H4<4,0,VLOOKUP(H4,kisl,2,TRUE)) -> 0 | J4: =SUM(E4,G4,I4) -> 0 | K4: =RANK(J4,'E. II. kcs'!$J$3:$J$58,0) -> 17
A5: Molnár Dorka | B5: 2011 | C5: I-II. | D5: 10.7 | E5: 108 | F5: 3.13 | G5: 73 | H5: 26.74 | I5: 84 | J5: =SUM(E5,G5,I5) -> 265 | K5: =RANK(J5,'E. II. kcs'!$J$3:$J$58,0) -> 6 | L5: BÁI Kakasd
A6: Fekete Aporka | B6: 2011 | C6: I-II. | D6: 10.6 | E6: 112 | F6: 3.41 | G6: 89 | H6: 21.26 | I6: 63 | J6: 264 | K6: =RANK(J6,'E. II. kcs'!$J$3:$J$58,0) -> 7 | L6: BÁI Kakasd
A7: Szép Letícia | B7: 2011 | C7: I-II. | D7: 10.1 | E7: 134 | F7: 3.16 | G7: 75 | H7: 16.6 | I7: 45 | J7: 254 | K7: =RANK(J7,'E. II. kcs'!$J$3:$J$58,0) -> 10 | L7: Decs
A8: Beck Tímea | B8: 2013 | C8: I-II. | D8: 11 | E8: 95 | F8: 2.76 | G8: 52 | H8: 9.2 | I8: 18 | J8: 165 | K8: =RANK(J8,'E. II. kcs'!$J$3:$J$58,0) -> 14 | L8: Várdomb
C9: I-II. | E9: 0 | G9: 0 | I9: 0 | J9: 0 | K9: =RANK(J9,'E. II. kcs'!$J$3:$J$58,0) -> 17
C10: I-II. | E10: 0 | G10: 0 | I10: 0 | J10: 0 | K10: =RANK(J10,'E. II. kcs'!$J$3:$J$58,0) -> 17
C11: I-II. | E11: 0 | G11: 0 | I11: 0 | J11: 0 | K11: =RANK(J11,'E. II. kcs'!$J$3:$J$58,0) -> 17
C12: I-II. | E12: 0 | G12: 0 | I12: 0 | J12: 0 | K12: =RANK(J12,'E. II. kcs'!$J$3:$J$58,0) -> 17
C13: I-II. | E13: 0 | G13: 0 | I13: 0 | J13: 0 | K13: =RANK(J13,'E. II. kcs'!$J$3:$J$58,0) -> 17
C14: I-II. | E14: 0 | G14: 0 | I14: 0 | J14: 0 | K14: =RANK(J14,'E. II. kcs'!$J$3:$J$58,0) -> 17
C15: I-II. | E15: 0 | G15: =IF(F15<1.79,0,VLOOKUP(F15,távol,4,TRUE)) -> 0 | I15: =IF(H15<4,0,VLOOKUP(H15,kisl,2,TRUE)) -> 0 | J15: =SUM(E15,G15,I15) -> 0 | K15: =RANK(J15,'E. II. kcs'!$J$3:$J$58,0) -> 17
A16: László Amanda | B16: 2010 | C16: III. | D16: 8.9 | E16: 191 | F16: 3.75 | G16: 110 | H16: 38.9 | I16: 135 | J16: 436 | K16: =RANK(J16,'E. III. kcs'!$J$3:$J$58,0) -> 1 | L16: cikó
C17: III. | E17: 0 | G17: 0 | I17: 0 | J17: 0 | K17: =RANK(J17,'E. III. kcs'!$J$3:$J$58,0) -> 16
A18: Halvax Dominika | B18: 2010 | C18: III. | D18: 9.5 | E18: 161 | F18: 3.41 | G18: 89 | H18: 22.12 | I18: 66 | J18: 316 | K18: =RANK(J18,'E. III. kcs'!$J$3:$J$58,0) -> 8 | L18: Decs
A19: Rofsics Vanessza | B19: 2010 | C19: III. | D19: 9.8 | E19: 147 | F19: 3.11 | G19: 72 | H19: 26.2 | I19: 82 | J19: 301 | K19: =RANK(J19,'E. III. kcs'!$J$3:$J$58,0) -> 13 | L19: Hőgyész
C20: III. | E20: 0 | G20: 0 | I20: 0 | J20: 0 | K20: =RANK(J20,'E. III. kcs'!$J$3:$J$58,0) -> 16
C21: III. | E21: 0 | G21: 0 | I21: 0 | J21: 0 | K21: =RANK(J21,'E. III. kcs'!$J$3:$J$58,0) -> 16
C22: III. | E22: 0 | G22: 0 | I22: 0 | J22: 0 | K22: =RANK(J22,'E. III. kcs'!$J$3:$J$58,0) -> 16
C23: III. | E23: 0 | G23: 0 | I23: 0 | J23: 0 | K23: =RANK(J23,'E. III. kcs'!$J$3:$J$58,0) -> 16
C24: III. | E24: 0 | G24: 0 | I24: 0 | J24: 0 | K24: =RANK(J24,'E. III. kcs'!$J$3:$J$58,0) -> 16
C25: III. | E25: 0 | G25: 0 | I25: 0 | J25: 0 | K25: =RANK(J25,'E. III. kcs'!$J$3:$J$58,0) -> 16
C26: III. | E26: 0 | G26: 0 | I26: 0 | J26: 0 | K26: =RANK(J26,'E. III. kcs'!$J$3:$J$58,0) -> 16
C27: III. | E27: 0 | G27: 0 | I27: 0 | J27: 0 | K27: =RANK(J27,'E. III. kcs'!$J$3:$J$58,0) -> 16
A28: Horváth Réka | B28: 2007 | C28: IV. | D28: 15 | E28: =IF(D28<6.19,0,VLOOKUP(D28,rfut,5,TRUE)) -> 136 | F28: 3.96 | G28: 124 | H28: 23.45 | I28: 71 | J28: 331 | K28: =RANK(J28,'E. IV. kcs'!$J$3:$J$58,0) -> 6 | L28: Hőgyész
A29: Kovács Ramóna | B29: 2007 | C29: IV. | D29: 20 | E29: 0 | F29: 0 | G29: 0 | H29: 23.26 | I29: 70 | J29: 70 | K29: =RANK(J29,'E. IV. kcs'!$J$3:$J$58,0) -> 17 | L29: Hőgyész
A30: Auvalszki Renáta | B30: 2008 | C30: IV. | D30: 16.3 | E30: 88 | F30: 2.8 | G30: 54 | H30: 25.76 | I30: 80 | J30: 222 | K30: =RANK(J30,'E. IV. kcs'!$J$3:$J$58,0) -> 12 | L30: Várdomb
A31: Pasztovszki Zsófia | B31: 2008 | C31: IV. | D31: 18.7 | E31: 9 | F31: 2.57 | G31: 41 | H31: 20.97 | I31: 61 | J31: 111 | K31: =RANK(J31,'E. IV. kcs'!$J$3:$J$58,0) -> 16 | L31: Várdomb
A32: Varga Dóra | B32: 2008 | C32: IV. | D32: 14.5 | E32: 156 | F32: 3.32 | G32: 84 | H32: 20 | I32: 58 | J32: 298 | K32: =RANK(J32,'E. IV. kcs'!$J$3:$J$58,0) -> 8 | L32: Decs
C33: IV. | E33: 0 | G33: 0 | I33: 0 | J33: 0 | K33: =RANK(J33,'E. IV. kcs'!$J$3:$J$58,0) -> 18
C34: IV. | E34: 0 | G34: 0 | I34: 0 | J34: 0 | K34: =RANK(J34,'E. IV. kcs'!$J$3:$J$58,0) -> 18
C35: IV. | E35: 0 | G35: 0 | I35: 0 | J35: 0 | K35: =RANK(J35,'E. IV. kcs'!$J$3:$J$58,0) -> 18
C36: IV. | E36: 0 | G36: 0 | I36: 0 | J36: 0 | K36: =RANK(J36,'E. IV. kcs'!$J$3:$J$58,0) -> 18
C37: IV. | E37: 0 | G37: 0 | I37: 0 | J37: 0 | K37: =RANK(J37,'E. IV. kcs'!$J$3:$J$58,0) -> 18
C38: IV. | E38: 0 | G38: 0 | I38: 0 | J38: 0 | K38: =RANK(J38,'E. IV. kcs'!$J$3:$J$58,0) -> 18
C39: IV. | E39: 0 | G39: 0 | I39: 0 | J39: 0 | K39: =RANK(J39,'E. IV. kcs'!$J$3:$J$58,0) -> 18
A42: Teveli Ált. Isk | L42: =RANK(L44,Csapat!$C$3:P30,0) -> 4
A43: Név | B43: Sz.év | C43: Kcs. | D43: R. futás | F43: Távolugrás | H43: Klabdahajítás | J43: Összpont | K43: Helyezés
A44: Velikán Nóra | B44: 2013 | C44: I-II. | D44: 11.8 | E44: =IF(D44<6.19,0,VLOOKUP(D44,rrfut,7,TRUE)) -> 63 | F44: 2.62 | G44: =IF(F44<1.79,0,VLOOKUP(F44,távol,4,TRUE)) -> 44 | H44: 19.07 | I44: =IF(H44<4,0,VLOOKUP(H44,kisl,2,TRUE)) -> 54 | J44: =SUM(E44,G44,I44) -> 161 | K44: =RANK(J44,'E. II. kcs'!$J$3:$J$58,0) -> 15 | L44: =SUM(J44:J49) -> 1795
A45: Nagy Nóra Veronika | B45: 2011 | C45: I-II. | D45: 9.5 | E45: =IF(D45<6.19,0,VLOOKUP(D45,rrfut,7,TRUE)) -> 161 | F45: 3.62 | G45: 102 | H45: 20.65 | I45: 60 | J45: =SUM(E45,G45,I45) -> 323 | K45: =RANK(J45,'E. II. kcs'!$J$3:$J$58,0) -> 1
A46: Csobot Léna Viktória | B46: 2010 | C46: III. | D46: 9.7 | E46: =IF(D46<6.19,0,VLOOKUP(D46,rrfut,7,TRUE)) -> 152 | F46: 3.74 | G46: 109 | H46: 26.8 | I46: 84 | J46: 345 | K46: =RANK(J46,'E. III. kcs'!$J$3:$J$58,0) -> 5
A47: Salamon Csenge | B47: 2009 | C47: III. | D47: 9.7 | E47: =IF(D47<6.19,0,VLOOKUP(D47,rrfut,7,TRUE)) -> 152 | F47: 3.48 | G47: 93 | H47: 32.7 | I47: 108 | J47: 353 | K47: =RANK(J47,'E. III. kcs'!$J$3:$J$58,0) -> 4
A48: Éri Boglárka | B48: 2008 | C48: IV. | D48: 14.9 | E48: =IF(D48<6.19,0,VLOOKUP(D48,rfut,5,TRUE)) -> 140 | F48: 3.77 | G48: 111 | H48: 27.29 | I48: 86 | J48: 337 | K48: =RANK(J48,'E. IV. kcs'!$J$3:$J$58,0) -> 4
A49: Erb Zsüliett | B49: 2008 | C49: IV. | D49: 16.4 | E49: =IF(D49<6.19,0,VLOOKUP(D49,rfut,5,TRUE)) -> 85 | F49: 3.3 | G49: 83 | H49: 32.65 | I49: 108 | J49: 276 | K49: =RANK(J49,'E. IV. kcs'!$J$3:$J$58,0) -> 9
A52: Várdomb-Alsónána Ált. Isk. | L52: =RANK(L54,Csapat!$C$3:P40,0) -> 6
A53: Név | B53: Sz.év | C53: Kcs. | D53: R. futás | F53: Távolugrás | H53: Klabdahajítás | J53: Összpont | K53: Helyezés
A54: Karácsony Dorina | B54: 2013 | C54: I-II. | D54: 11.6 | E54: =IF(D54<6.19,0,VLOOKUP(D54,rrfut,7,TRUE)) -> 71 | F54: 2.31 | G54: =IF(F54<1.79,0,VLOOKUP(F54,távol,4,TRUE)) -> 27 | H54: 15.64 | I54: =IF(H54<4,0,VLOOKUP(H54,kisl,2,TRUE)) -> 41 | J54: =SUM(E54,G54,I54) -> 139 | K54: =RANK(J54,'E. II. kcs'!$J$3:$J$58,0) -> 16 | L54: =SUM(J54:J59) -> 1332
A55: Berecz Mercédesz | B55: 2012 | C55: I-II. | D55: 10.8 | E55: =IF(D55<6.19,0,VLOOKUP(D55,rrfut,7,TRUE)) -> 103 | F55: 2.4 | G55: 32 | H55: 19.3 | I55: 55 | J55: =SUM(E55,G55,I55) -> 190 | K55: =RANK(J55,'E. II. kcs'!$J$3:$J$58,0) -> 13
A56: Péter Vivien | B56: 2010 | C56: III. | D56: 9.5 | E56: =IF(D56<6.19,0,VLOOKUP(D56,rrfut,7,TRUE)) -> 161 | F56: 3.48 | G56: 93 | H56: 18.68 | I56: 52 | J56: 306 | K56: =RANK(J56,'E. III. kcs'!$J$3:$J$58,0) -> 11
A57: Sárközi Angéla | B57: 2009 | C57: III. | D57: 9.3 | E57: =IF(D57<6.19,0,VLOOKUP(D57,rrfut,7,TRUE)) -> 171 | F57: 3.1 | G57: 71 | H57: 20.64 | I57: 60 | J57: 302 | K57: =RANK(J57,'E. III. kcs'!$J$3:$J$58,0) -> 12
A58: Keinráth Anna | B58: 2007 | C58: IV. | D58: 16.6 | E58: =IF(D58<6.19,0,VLOOKUP(D58,rfut,5,TRUE)) -> 78 | F58: 2.72 | G58: 49 | H58: 26.86 | I58: 85 | J58: 212 | K58: =RANK(J58,'E. IV. kcs'!$J$3:$J$58,0) -> 14
A59: Medveczki Dóra | B59: 2007 | C59: IV. | D59: 18.8 | E59: 6 | F59: 3.08 | G59: 70 | H59: 32.3 | I59: 107 | J59: 183 | K59: =RANK(J59,'E. IV. kcs'!$J$3:$J$58,0) -> 15
A62: Hőgyészi Hegyhát Ált. Isk. | L62: =RANK(L64,Csapat!$C$3:P50,0) -> 1
A63: Név | B63: Sz.év | C63: Kcs. | D63: R. futás | F63: Távolugrás | H63: Klabdahajítás | J63: Összpont | K63: Helyezés
A64: Horváth Dzsenifer | B64: 2011 | C64: I-II. | D64: 10 | E64: =IF(D64<6.19,0,VLOOKUP(D64,rrfut,7,TRUE)) -> 138 | F64: 3.11 | G64: =IF(F64<1.79,0,VLOOKUP(F64,távol,4,TRUE)) -> 72 | H64: 30.82 | I64: =IF(H64<4,0,VLOOKUP(H64,kisl,2,TRUE)) -> 100 | J64: =SUM(E64,G64,I64) -> 310 | K64: =RANK(J64,'E. II. kcs'!$J$3:$J$58,0) -> 3 | L64: =SUM(J64:J69) -> 1934
A65: Pallag Vivien | B65: 2011 | C65: I-II. | D65: 10.5 | E65: =IF(D65<6.19,0,VLOOKUP(D65,rrfut,7,TRUE)) -> 116 | F65: 2.81 | G65: 54 | H65: 22.35 | I65: 67 | J65: =SUM(E65,G65,I65) -> 237 | K65: =RANK(J65,'E. II. kcs'!$J$3:$J$58,0) -> 11
A66: Rofrics Fatima | B66: 2010 | C66: III. | D66: 8.9 | E66: =IF(D66<6.19,0,VLOOKUP(D66,rrfut,7,TRUE)) -> 191 | F66: 3.61 | G66: 101 | H66: 36.14 | I66: 123 | J66: 415 | K66: =RANK(J66,'E. III. kcs'!$J$3:$J$58,0) -> 2
A67: Tóth-Bera Dzsenifer | B67: 2009 | C67: III. | D67: 9.07 | E67: =IF(D67<6.19,0,VLOOKUP(D67,rrfut,7,TRUE)) -> 182 | F67: 2.89 | G67: 59 | H67: 26.6 | I67: 84 | J67: 325 | K67: =RANK(J67,'E. III. kcs'!$J$3:$J$58,0) -> 7
A68: Bordás Lara | B68: 2008 | C68: IV. | D68: 15.3 | E68: =IF(D68<6.19,0,VLOOKUP(D68,rfut,5,TRUE)) -> 125 | F68: 3.74 | G68: 109 | H68: 30.24 | I68: 98 | J68: 332 | K68: =RANK(J68,'E. IV. kcs'!$J$3:$J$58,0) -> 5
A69: Orsós Nikoletta | B69: 2008 | C69: IV. | D69: 17 | E69: 64 | F69: 3.78 | G69: 112 | H69: 39.95 | I69: 139 | J69: 315 | K69: =RANK(J69,'E. IV. kcs'!$J$3:$J$58,0) -> 7
A72: Kölesdi Béri Balogh Ádám Ált. Isk. | L72: =RANK(L74,Csapat!$C$3:P60,0) -> 2
A73: Név | B73: Sz.év | C73: Kcs. | D73: R. futás | F73: Távolugrás | H73: Klabdahajítás | J73: Összpont | K73: Helyezés
A74: Barkóczi Hanna | B74: 2012 | C74: I-II. | D74: 11 | E74: =IF(D74<6.19,0,VLOOKUP(D74,rrfut,7,TRUE)) -> 95 | F74: 2.84 | G74: =IF(F74<1.79,0,VLOOKUP(F74,távol,4,TRUE)) -> 56 | H74: 18.64 | I74: =IF(H74<4,0,VLOOKUP(H74,kisl,2,TRUE)) -> 52 | J74: =SUM(E74,G74,I74) -> 203 | K74: =RANK(J74,'E. II. kcs'!$J$3:$J$58,0) -> 12 | L74: =SUM(J74:J79) -> 1847
A75: Szalai Izabella Dzsenna | B75: 2011 | C75: I-II. | D75: 10.5 | E75: =IF(D75<6.19,0,VLOOKUP(D75,rrfut,7,TRUE)) -> 116 | F75: 3.02 | G75: 67 | H75: 25.7 | I75: 80 | J75: =SUM(E75,G75,I75) -> 263 | K75: =RANK(J75,'E. II. kcs'!$J$3:$J$58,0) -> 9
A76: Bencze Vanessza Mária | B76: 2009 | C76: III. | D76: 9.5 | E76: =IF(D76<6.19,0,VLOOKUP(D76,rrfut,7,TRUE)) -> 161 | F76: 2.77 | G76: 52 | H76: 27.3 | I76: 86 | J76: 299 | K76: =RANK(J76,'E. III. kcs'!$J$3:$J$58,0) -> 14
A77: Féder Jázmin | B77: 2009 | C77: III. | D77: 10 | E77: =IF(D77<6.19,0,VLOOKUP(D77,rrfut,7,TRUE)) -> 138 | F77: 3.52 | G77: 96 | H77: 25.1 | I77: 78 | J77: 312 | K77: =RANK(J77,'E. III. kcs'!$J$3:$J$58,0) -> 9
A78: Bán Dzsenifer Réka | B78: 2007 | C78: IV. | D78: 14.7 | E78: =IF(D78<6.19,0,VLOOKUP(D78,rfut,5,TRUE)) -> 147 | F78: 4.32 | G78: 147 | H78: 34.16 | I78: 115 | J78: 409 | K78: =RANK(J78,'E. IV. kcs'!$J$3:$J$58,0) -> 1
A79: Kalmár Zsófia | B79: 2007 | C79: IV. | D79: 14.6 | E79: 151 | F79: 3.72 | G79: 108 | H79: 31.2 | I79: 102 | J79: 361 | K79: =RANK(J79,'E. IV. kcs'!$J$3:$J$58,0) -> 3
A82: BÁI Kakasd | L82: =RANK(L84,Csapat!$C$3:P70,0) -> 3
A83: Név | B83: Sz.év | C83: Kcs. | D83: R. futás | F83: Távolugrás | H83: Klabdahajítás | J83: Összpont | K83: Helyezés
A84: Szabó Csenge | B84: 2012 | C84: I-II. | D84: 10.4 | E84: =IF(D84<6.19,0,VLOOKUP(D84,rrfut,7,TRUE)) -> 121 | F84: 3.61 | G84: =IF(F84<1.79,0,VLOOKUP(F84,távol,4,TRUE)) -> 101 | H84: 22.4 | I84: =IF(H84<4,0,VLOOKUP(H84,kisl,2,TRUE)) -> 67 | J84: =SUM(E84,G84,I84) -> 289 | K84: =RANK(J84,'E. II. kcs'!$J$3:$J$58,0) -> 5 | L84: =SUM(J84:J89) -> 1838
A85: Dunai Inez | B85: 2011 | C85: I-II. | D85: 9.8 | E85: =IF(D85<6.19,0,VLOOKUP(D85,rrfut,7,TRUE)) -> 147 | F85: 3.22 | G85: 78 | H85: 28.05 | I85: 89 | J85: =SUM(E85,G85,I85) -> 314 | K85: =RANK(J85,'E. II. kcs'!$J$3:$J$58,0) -> 2
A86: Paróczai Dana Eszter | B86: 2010 | C86: III. | D86: 9.4 | E86: =IF(D86<6.19,0,VLOOKUP(D86,rrfut,7,TRUE)) -> 166 | F86: 3.66 | G86: 104 | H86: 23.28 | I86: 71 | J86: 341 | K86: =RANK(J86,'E. III. kcs'!$J$3:$J$58,0) -> 6
A87: Plózel Anna | B87: 2010 | C87: III. | D87: 10 | E87: =IF(D87<6.19,0,VLOOKUP(D87,rrfut,7,TRUE)) -> 138 | F87: 2.94 | G87: 62 | H87: 23.79 | I87: 73 | J87: 273 | K87: =RANK(J87,'E. III. kcs'!$J$3:$J$58,0) -> 15
A88: Pesti Lívia | B88: 2008 | C88: IV. | D88: 17 | E88: =IF(D88<6.19,0,VLOOKUP(D88,rfut,5,TRUE)) -> 64 | F88: 3.39 | G88: 88 | H88: 26.55 | I88: 83 | J88: 235 | K88: =RANK(J88,'E. IV. kcs'!$J$3:$J$58,0) -> 11
A89: Kolozsvári Hilcz Kitti | B89: 2007 | C89: IV. | D89: 14.4 | E89: 160 | F89: 3.92 | G89: 121 | H89: 31.95 | I89: 105 | J89: 386 | K89: =RANK(J89,'E. IV. kcs'!$J$3:$J$58,0) -> 2
A92: Őcsényi Perczel Mór Ált. Isk. | L92: =RANK(L94,Csapat!$C$3:P80,0) -> 5
A93: Név | B93: Sz.év | C93: Kcs. | D93: R. futás | F93: Távolugrás | H93: Klabdahajítás | J93: Összpont | K93: Helyezés
A94: Tóth Míra Maja | B94: 2012 | C94: I-II. | D94: 9.5 | E94: =IF(D94<6.19,0,VLOOKUP(D94,rrfut,7,TRUE)) -> 161 | F94: 3.43 | G94: =IF(F94<1.79,0,VLOOKUP(F94,távol,4,TRUE)) -> 91 | H94: 18.03 | I94: =IF(H94<4,0,VLOOKUP(H94,kisl,2,TRUE)) -> 50 | J94: =SUM(E94,G94,I94) -> 302 | K94: =RANK(J94,'E. II. kcs'!$J$3:$J$58,0) -> 4 | L94: =SUM(J94:J99) -> 1694
A95: Kulcsár Lilien | B95: 2011 | C95: I-II. | D95: 10.4 | E95: =IF(D95<6.19,0,VLOOKUP(D95,rrfut,7,TRUE)) -> 121 | F95: 2.87 | G95: 58 | H95: 27 | I95: 85 | J95: =SUM(E95,G95,I95) -> 264 | K95: =RANK(J95,'E. II. kcs'!$J$3:$J$58,0) -> 7
A96: Lakó Csenge | B96: 2009 | C96: III. | D96: 9.8 | E96: =IF(D96<6.19,0,VLOOKUP(D96,rrfut,7,TRUE)) -> 147 | F96: 4.03 | G96: 128 | H96: 27.28 | I96: 86 | J96: 361 | K96: =RANK(J96,'E. III. kcs'!$J$3:$J$58,0) -> 3
A97: Sági Tímea | B97: 2009 | C97: III. | D97: 9.7 | E97: =IF(D97<6.19,0,VLOOKUP(D97,rrfut,7,TRUE)) -> 152 | F97: 3.56 | G97: 98 | H97: 20.5 | I97: 60 | J97: 310 | K97: =RANK(J97,'E. III. kcs'!$J$3:$J$58,0) -> 10
A98: Gellér Fanni | B98: 2007 | C98: IV. | D98: 16.2 | E98: =IF(D98<6.19,0,VLOOKUP(D98,rfut,5,TRUE)) -> 91 | F98: 3.58 | G98: 99 | H98: 18.05 | I98: 50 | J98: 240 | K98: =RANK(J98,'E. IV. kcs'!$J$3:$J$58,0) -> 10
A99: Naszvadi Hunorka | B99: 2007 | C99: IV. | D99: 17.2 | E99: 57 | F99: 3.56 | G99: 98 | H99: 21.07 | I99: 62 | J99: 217 | K99: =RANK(J99,'E. IV. kcs'!$J$3:$J$58,0) -> 13
L102: =RANK(L104,Csapat!$C$3:P90,0) -> 7
A103: Név | B103: Sz.év | C103: Kcs. | D103: R. futás | F103: Távolugrás | H103: Klabdahajítás | J103: Összpont | K103: Helyezés
C104: I-II. | E104: =IF(D104<6.19,0,VLOOKUP(D104,rrfut,7,TRUE)) -> 0 | G104: =IF(F104<1.79,0,VLOOKUP(F104,távol,4,TRUE)) -> 0 | I104: =IF(H104<4,0,VLOOKUP(H104,kisl,2,TRUE)) -> 0 | J104: =SUM(E104,G104,I104) -> 0 | K104: =RANK(J104,'E. II. kcs'!$J$3:$J$58,0) -> 17 | L104: =SUM(J104:J109) -> 0
C105: I-II. | E105: =IF(D105<6.19,0,VLOOKUP(D105,rrfut,7,TRUE)) -> 0 | G105: 0 | I105: 0 | J105: =SUM(E105,G105,I105) -> 0 | K105: =RANK(J105,'E. II. kcs'!$J$3:$J$58,0) -> 17
C106: III. | E106: =IF(D106<6.19,0,VLOOKUP(D106,rrfut,7,TRUE)) -> 0 | G106: 0 | I106: 0 | J106: 0 | K106: =RANK(J106,'E. III. kcs'!$J$3:$J$58,0) -> 16
C107: III. | E107: =IF(D107<6.19,0,VLOOKUP(D107,rrfut,7,TRUE)) -> 0 | G107: 0 | I107: 0 | J107: 0 | K107: =RANK(J107,'E. III. kcs'!$J$3:$J$58,0) -> 16
C108: IV. | E108: =IF(D108<6.19,0,VLOOKUP(D108,rfut,5,TRUE)) -> 0 | G108: 0 | I108: 0 | J108: 0 | K108: =RANK(J108,'E. IV. kcs'!$J$3:$J$58,0) -> 18
C109: IV. | E109: 0 | G109: 0 | I109: 0 | J109: 0 | K109: =RANK(J109,'E. IV. kcs'!$J$3:$J$58,0) -> 18
L112: =RANK(L114,Csapat!$C$3:P100,0) -> 7
A113: Név | B113: Sz.év | C113: Kcs. | D113: R. futás | F113: Távolugrás | H113: Klabdahajítás | J113: Összpont | K113: Helyezés
C114: I-II. | E114: =IF(D114<6.19,0,VLOOKUP(D114,rrfut,7,TRUE)) -> 0 | G114: =IF(F114<1.79,0,VLOOKUP(F114,távol,4,TRUE)) -> 0 | I114: =IF(H114<4,0,VLOOKUP(H114,kisl,2,TRUE)) -> 0 | J114: =SUM(E114,G114,I114) -> 0 | K114: =RANK(J114,'E. II. kcs'!$J$3:$J$58,0) -> 17 | L114: =SUM(J114:J119) -> 0
C115: I-II. | E115: =IF(D115<6.19,0,VLOOKUP(D115,rrfut,7,TRUE)) -> 0 | G115: 0 | I115: 0 | J115: =SUM(E115,G115,I115) -> 0 | K115: =RANK(J115,'E. II. kcs'!$J$3:$J$58,0) -> 17
C116: III. | E116: =IF(D116<6.19,0,VLOOKUP(D116,rrfut,7,TRUE)) -> 0 | G116: 0 | I116: 0 | J116: 0 | K116: =RANK(J116,'E. III. kcs'!$J$3:$J$58,0) -> 16
C117: III. | E117: =IF(D117<6.19,0,VLOOKUP(D117,rrfut,7,TRUE)) -> 0 | G117: 0 | I117: 0 | J117: 0 | K117: =RANK(J117,'E. III. kcs'!$J$3:$J$58,0) -> 16
C118: IV. | E118: =IF(D118<6.19,0,VLOOKUP(D118,rfut,5,TRUE)) -> 0 | G118: 0 | I118: 0 | J118: 0 | K118: =RANK(J118,'E. IV. kcs'!$J$3:$J$58,0) -> 18
C119: IV. | E119: 0 | G119: 0 | I119: 0 | J119: 0 | K119: =RANK(J119,'E. IV. kcs'!$J$3:$J$58,0) -> 18
L122: =RANK(L124,Csapat!$C$3:P110,0) -> 7
A123: Név | B123: Sz.év | C123: Kcs. | D123: R. futás | F123: Távolugrás | H123: Klabdahajítás | J123: Összpont | K123: Helyezés
C124: I-II. | E124: =IF(D124<6.19,0,VLOOKUP(D124,rrfut,7,TRUE)) -> 0 | G124: =IF(F124<1.79,0,VLOOKUP(F124,távol,4,TRUE)) -> 0 | I124: =IF(H124<4,0,VLOOKUP(H124,kisl,2,TRUE)) -> 0 | J124: =SUM(E124,G124,I124) -> 0 | K124: =RANK(J124,'E. II. kcs'!$J$3:$J$58,0) -> 17 | L124: =SUM(J124:J129) -> 0
C125: I-II. | E125: =IF(D125<6.19,0,VLOOKUP(D125,rrfut,7,TRUE)) -> 0 | G125: 0 | I125: 0 | J125: =SUM(E125,G125,I125) -> 0 | K125: =RANK(J125,'E. II. kcs'!$J$3:$J$58,0) -> 17
C126: III. | E126: =IF(D126<6.19,0,VLOOKUP(D126,rrfut,7,TRUE)) -> 0 | G126: 0 | I126: 0 | J126: 0 | K126: =RANK(J126,'E. III. kcs'!$J$3:$J$58,0) -> 16
C127: III. | E127: =IF(D127<6.19,0,VLOOKUP(D127,rrfut,7,TRUE)) -> 0 | G127: 0 | I127: 0 | J127: 0 | K127: =RANK(J127,'E. III. kcs'!$J$3:$J$58,0) -> 16
C128: IV. | E128: =IF(D128<6.19,0,VLOOKUP(D128,rfut,5,TRUE)) -> 0 | G128: 0 | I128: 0 | J128: 0 | K128: =RANK(J128,'E. IV. kcs'!$J$3:$J$58,0) -> 18
C129: IV. | E129: 0 | G129: 0 | I129: 0 | J129: 0 | K129: =RANK(J129,'E. IV. kcs'!$J$3:$J$58,0) -> 18
L132: =RANK(L134,Csapat!$C$3:P120,0) -> 7
A133: Név | B133: Sz.év | C133: Kcs. | D133: R. futás | F133: Távolugrás | H133: Klabdahajítás | J133: Összpont | K133: Helyezés
C134: I-II. | E134: =IF(D134<6.19,0,VLOOKUP(D134,rrfut,7,TRUE)) -> 0 | G134: =IF(F134<1.79,0,VLOOKUP(F134,távol,4,TRUE)) -> 0 | I134: =IF(H134<4,0,VLOOKUP(H134,kisl,2,TRUE)) -> 0 | J134: =SUM(E134,G134,I134) -> 0 | K134: =RANK(J134,'E. II. kcs'!$J$3:$J$58,0) -> 17 | L134: =SUM(J134:J139) -> 0
C135: I-II. | E135: =IF(D135<6.19,0,VLOOKUP(D135,rrfut,7,TRUE)) -> 0 | G135: 0 | I135: 0 | J135: =SUM(E135,G135,I135) -> 0 | K135: =RANK(J135,'E. II. kcs'!$J$3:$J$58,0) -> 17
C136: III. | E136: =IF(D136<6.19,0,VLOOKUP(D136,rrfut,7,TRUE)) -> 0 | G136: 0 | I136: 0 | J136: 0 | K136: =RANK(J136,'E. III. kcs'!$J$3:$J$58,0) -> 16
C137: III. | E137: =IF(D137<6.19,0,VLOOKUP(D137,rrfut,7,TRUE)) -> 0 | G137: 0 | I137: 0 | J137: 0 | K137: =RANK(J137,'E. III. kcs'!$J$3:$J$58,0) -> 16
C138: IV. | E138: =IF(D138<6.19,0,VLOOKUP(D138,rfut,5,TRUE)) -> 0 | G138: 0 | I138: 0 | J138: 0 | K138: =RANK(J138,'E. IV. kcs'!$J$3:$J$58,0) -> 18
C139: IV. | E139: 0 | G139: 0 | I139: 0 | J139: 0 | K139: =RANK(J139,'E. IV. kcs'!$J$3:$J$58,0) -> 18
L142: =RANK(L144,Csapat!$C$3:P130,0) -> 7
A143: Név | B143: Sz.év | C143: Kcs. | D143: R. futás | F143: Távolugrás | H143: Klabdahajítás | J143: Összpont | K143: Helyezés
C144: I-II. | E144: =IF(D144<6.19,0,VLOOKUP(D144,rrfut,7,TRUE)) -> 0 | G144: =IF(F144<1.79,0,VLOOKUP(F144,távol,4,TRUE)) -> 0 | I144: =IF(H144<4,0,VLOOKUP(H144,kisl,2,TRUE)) -> 0 | J144: =SUM(E144,G144,I144) -> 0 | K144: =RANK(J144,'E. II. kcs'!$J$3:$J$58,0) -> 17 | L144: =SUM(J144:J149) -> 0
C145: I-II. | E145: =IF(D145<6.19,0,VLOOKUP(D145,rrfut,7,TRUE)) -> 0 | G145: 0 | I145: 0 | J145: =SUM(E145,G145,I145) -> 0 | K145: =RANK(J145,'E. II. kcs'!$J$3:$J$58,0) -> 17
C146: III. | E146: =IF(D146<6.19,0,VLOOKUP(D146,rrfut,7,TRUE)) -> 0 | G146: 0 | I146: 0 | J146: 0 | K146: =RANK(J146,'E. III. kcs'!$J$3:$J$58,0) -> 16
C147: III. | E147: =IF(D147<6.19,0,VLOOKUP(D147,rrfut,7,TRUE)) -> 0 | G147: 0 | I147: 0 | J147: 0 | K147: =RANK(J147,'E. III. kcs'!$J$3:$J$58,0) -> 16
C148: IV. | E148: =IF(D148<6.19,0,VLOOKUP(D148,rfut,5,TRUE)) -> 0 | G148: 0 | I148: 0 | J148: 0 | K148: =RANK(J148,'E. IV. kcs'!$J$3:$J$58,0) -> 18
C149: IV. | E149: 0 | G149: 0 | I149: 0 | J149: 0 | K149: =RANK(J149,'E. IV. kcs'!$J$3:$J$58,0) -> 18
L152: =RANK(L154,Csapat!$C$3:P140,0) -> 7
A153: Név | B153: Sz.év | C153: Kcs. | D153: R. futás | F153: Távolugrás | H153: Klabdahajítás | J153: Összpont | K153: Helyezés
C154: I-II. | E154: =IF(D154<6.19,0,VLOOKUP(D154,rrfut,7,TRUE)) -> 0 | G154: =IF(F154<1.79,0,VLOOKUP(F154,távol,4,TRUE)) -> 0 | I154: =IF(H154<4,0,VLOOKUP(H154,kisl,2,TRUE)) -> 0 | J154: =SUM(E154,G154,I154) -> 0 | K154: =RANK(J154,'E. II. kcs'!$J$3:$J$58,0) -> 17 | L154: =SUM(J154:J159) -> 0
C155: I-II. | E155: =IF(D155<6.19,0,VLOOKUP(D155,rrfut,7,TRUE)) -> 0 | G155: 0 | I155: 0 | J155: =SUM(E155,G155,I155) -> 0 | K155: =RANK(J155,'E. II. kcs'!$J$3:$J$58,0) -> 17
C156: III. | E156: =IF(D156<6.19,0,VLOOKUP(D156,rrfut,7,TRUE)) -> 0 | G156: 0 | I156: 0 | J156: 0 | K156: =RANK(J156,'E. III. kcs'!$J$3:$J$58,0) -> 16
C157: III. | E157: =IF(D157<6.19,0,VLOOKUP(D157,rrfut,7,TRUE)) -> 0 | G157: 0 | I157: 0 | J157: 0 | K157: =RANK(J157,'E. III. kcs'!$J$3:$J$58,0) -> 16
C158: IV. | E158: =IF(D158<6.19,0,VLOOKUP(D158,rfut,5,TRUE)) -> 0 | G158: 0 | I158: 0 | J158: 0 | K158: =RANK(J158,'E. IV. kcs'!$J$3:$J$58,0) -> 18
C159: IV. | E159: 0 | G159: 0 | I159: 0 | J159: 0 | K159: =RANK(J159,'E. IV. kcs'!$J$3:$J$58,0) -> 18
L162: =RANK(L164,Csapat!$C$3:P150,0) -> 7
A163: Név | B163: Sz.év | C163: Kcs. | D163: R. futás | F163: Távolugrás | H163: Klabdahajítás | J163: Összpont | K163: Helyezés
C164: I-II. | E164: =IF(D164<6.19,0,VLOOKUP(D164,rrfut,7,TRUE)) -> 0 | G164: =IF(F164<1.79,0,VLOOKUP(F164,távol,4,TRUE)) -> 0 | I164: =IF(H164<4,0,VLOOKUP(H164,kisl,2,TRUE)) -> 0 | J164: =SUM(E164,G164,I164) -> 0 | K164: =RANK(J164,'E. II. kcs'!$J$3:$J$58,0) -> 17 | L164: =SUM(J164:J169) -> 0
C165: I-II. | E165: =IF(D165<6.19,0,VLOOKUP(D165,rrfut,7,TRUE)) -> 0 | G165: 0 | I165: 0 | J165: =SUM(E165,G165,I165) -> 0 | K165: =RANK(J165,'E. II. kcs'!$J$3:$J$58,0) -> 17
C166: III. | E166: =IF(D166<6.19,0,VLOOKUP(D166,rrfut,7,TRUE)) -> 0 | G166: 0 | I166: 0 | J166: 0 | K166: =RANK(J166,'E. III. kcs'!$J$3:$J$58,0) -> 16
C167: III. | E167: =IF(D167<6.19,0,VLOOKUP(D167,rrfut,7,TRUE)) -> 0 | G167: 0 | I167: 0 | J167: 0 | K167: =RANK(J167,'E. III. kcs'!$J$3:$J$58,0) -> 16
C168: IV. | E168: =IF(D168<6.19,0,VLOOKUP(D168,rfut,5,TRUE)) -> 0 | G168: 0 | I168: 0 | J168: 0 | K168: =RANK(J168,'E. IV. kcs'!$J$3:$J$58,0) -> 18
C169: IV. | E169: 0 | G169: 0 | I169: 0 | J169: 0 | K169: =RANK(J169,'E. IV. kcs'!$J$3:$J$58,0) -> 18
L172: =RANK(L174,Csapat!$C$3:P160,0) -> 7
A173: Név | B173: Sz.év | C173: Kcs. | D173: R. futás | F173: Távolugrás | H173: Klabdahajítás | J173: Összpont | K173: Helyezés
C174: I-II. | E174: =IF(D174<6.19,0,VLOOKUP(D174,rrfut,7,TRUE)) -> 0 | G174: =IF(F174<1.79,0,VLOOKUP(F174,távol,4,TRUE)) -> 0 | I174: =IF(H174<4,0,VLOOKUP(H174,kisl,2,TRUE)) -> 0 | J174: =SUM(E174,G174,I174) -> 0 | K174: =RANK(J174,'E. II. kcs'!$J$3:$J$58,0) -> 17 | L174: =SUM(J174:J179) -> 0
C175: I-II. | E175: =IF(D175<6.19,0,VLOOKUP(D175,rrfut,7,TRUE)) -> 0 | G175: 0 | I175: 0 | J175: =SUM(E175,G175,I175) -> 0 | K175: =RANK(J175,'E. II. kcs'!$J$3:$J$58,0) -> 17
C176: III. | E176: =IF(D176<6.19,0,VLOOKUP(D176,rrfut,7,TRUE)) -> 0 | G176: 0 | I176: 0 | J176: 0 | K176: =RANK(J176,'E. III. kcs'!$J$3:$J$58,0) -> 16
C177: III. | E177: =IF(D177<6.19,0,VLOOKUP(D177,rrfut,7,TRUE)) -> 0 | G177: 0 | I177: 0 | J177: 0 | K177: =RANK(J177,'E. III. kcs'!$J$3:$J$58,0) -> 16
C178: IV. | E178: =IF(D178<6.19,0,VLOOKUP(D178,rfut,5,TRUE)) -> 0 | G178: 0 | I178: 0 | J178: 0 | K178: =RANK(J178,'E. IV. kcs'!$J$3:$J$58,0) -> 18
C179: IV. | E179: 0 | G179: 0 | I179: 0 | J179: 0 | K179: =RANK(J179,'E. IV. kcs'!$J$3:$J$58,0) -> 18
L182: =RANK(L184,Csapat!$C$3:P170,0) -> 7
A183: Név | B183: Sz.év | C183: Kcs. | D183: R. futás | F183: Távolugrás | H183: Klabdahajítás | J183: Összpont | K183: Helyezés
C184: I-II. | E184: =IF(D184<6.19,0,VLOOKUP(D184,rrfut,7,TRUE)) -> 0 | G184: =IF(F184<1.79,0,VLOOKUP(F184,távol,4,TRUE)) -> 0 | I184: =IF(H184<4,0,VLOOKUP(H184,kisl,2,TRUE)) -> 0 | J184: =SUM(E184,G184,I184) -> 0 | K184: =RANK(J184,'E. II. kcs'!$J$3:$J$58,0) -> 17 | L184: =SUM(J184:J189) -> 0
C185: I-II. | E185: =IF(D185<6.19,0,VLOOKUP(D185,rrfut,7,TRUE)) -> 0 | G185: 0 | I185: 0 | J185: =SUM(E185,G185,I185) -> 0 | K185: =RANK(J185,'E. II. kcs'!$J$3:$J$58,0) -> 17
C186: III. | E186: =IF(D186<6.19,0,VLOOKUP(D186,rrfut,7,TRUE)) -> 0 | G186: 0 | I186: 0 | J186: 0 | K186: =RANK(J186,'E. III. kcs'!$J$3:$J$58,0) -> 16
C187: III. | E187: =IF(D187<6.19,0,VLOOKUP(D187,rrfut,7,TRUE)) -> 0 | G187: 0 | I187: 0 | J187: 0 | K187: =RANK(J187,'E. III. kcs'!$J$3:$J$58,0) -> 16
C188: IV. | E188: =IF(D188<6.19,0,VLOOKUP(D188,rfut,5,TRUE)) -> 0 | G188: 0 | I188: 0 | J188: 0 | K188: =RANK(J188,'E. IV. kcs'!$J$3:$J$58,0) -> 18
C189: IV. | E189: 0 | G189: 0 | I189: 0 | J189: 0 | K189: =RANK(J189,'E. IV. kcs'!$J$3:$J$58,0) -> 18
L192: =RANK(L194,Csapat!$C$3:P180,0) -> 7
A193: Név | B193: Sz.év | C193: Kcs. | D193: R. futás | F193: Távolugrás | H193: Klabdahajítás | J193: Összpont | K193: Helyezés
C194: I-II. | E194: =IF(D194<6.19,0,VLOOKUP(D194,rrfut,7,TRUE)) -> 0 | G194: =IF(F194<1.79,0,VLOOKUP(F194,távol,4,TRUE)) -> 0 | I194: =IF(H194<4,0,VLOOKUP(H194,kisl,2,TRUE)) -> 0 | J194: =SUM(E194,G194,I194) -> 0 | K194: =RANK(J194,'E. II. kcs'!$J$3:$J$58,0) -> 17 | L194: =SUM(J194:J199) -> 0
C195: I-II. | E195: =IF(D195<6.19,0,VLOOKUP(D195,rrfut,7,TRUE)) -> 0 | G195: 0 | I195: 0 | J195: =SUM(E195,G195,I195) -> 0 | K195: =RANK(J195,'E. II. kcs'!$J$3:$J$58,0) -> 17
C196: III. | E196: =IF(D196<6.19,0,VLOOKUP(D196,rrfut,7,TRUE)) -> 0 | G196: 0 | I196: 0 | J196: 0 | K196: =RANK(J196,'E. III. kcs'!$J$3:$J$58,0) -> 16
C197: III. | E197: =IF(D197<6.19,0,VLOOKUP(D197,rrfut,7,TRUE)) -> 0 | G197: 0 | I197: 0 | J197: 0 | K197: =RANK(J197,'E. III. kcs'!$J$3:$J$58,0) -> 16
C198: IV. | E198: =IF(D198<6.19,0,VLOOKUP(D198,rfut,5,TRUE)) -> 0 | G198: 0 | I198: 0 | J198: 0 | K198: =RANK(J198,'E. IV. kcs'!$J$3:$J$58,0) -> 18
C199: IV. | E199: 0 | G199: 0 | I199: 0 | J199: 0 | K199: =RANK(J199,'E. IV. kcs'!$J$3:$J$58,0) -> 18
L202: =RANK(L204,Csapat!$C$3:P190,0) -> 7
A203: Név | B203: Sz.év | C203: Kcs. | D203: R. futás | F203: Távolugrás | H203: Klabdahajítás | J203: Összpont | K203: Helyezés
C204: I-II. | E204: =IF(D204<6.19,0,VLOOKUP(D204,rrfut,7,TRUE)) -> 0 | G204: =IF(F204<1.79,0,VLOOKUP(F204,távol,4,TRUE)) -> 0 | I204: =IF(H204<4,0,VLOOKUP(H204,kisl,2,TRUE)) -> 0 | J204: =SUM(E204,G204,I204) -> 0 | K204: =RANK(J204,'E. II. kcs'!$J$3:$J$58,0) -> 17 | L204: =SUM(J204:J209) -> 0
C205: I-II. | E205: =IF(D205<6.19,0,VLOOKUP(D205,rrfut,7,TRUE)) -> 0 | G205: 0 | I205: 0 | J205: =SUM(E205,G205,I205) -> 0 | K205: =RANK(J205,'E. II. kcs'!$J$3:$J$58,0) -> 17
C206: III. | E206: =IF(D206<6.19,0,VLOOKUP(D206,rrfut,7,TRUE)) -> 0 | G206: 0 | I206: 0 | J206: 0 | K206: =RANK(J206,'E. III. kcs'!$J$3:$J$58,0) -> 16
C207: III. | E207: =IF(D207<6.19,0,VLOOKUP(D207,rrfut,7,TRUE)) -> 0 | G207: 0 | I207: 0 | J207: 0 | K207: =RANK(J207,'E. III. kcs'!$J$3:$J$58,0) -> 16
C208: IV. | E208: =IF(D208<6.19,0,VLOOKUP(D208,rfut,5,TRUE)) -> 0 | G208: 0 | I208: 0 | J208: 0 | K208: =RANK(J208,'E. IV. kcs'!$J$3:$J$58,0) -> 18
C209: IV. | E209: 0 | G209: 0 | I209: 0 | J209: 0 | K209: =RANK(J209,'E. IV. kcs'!$J$3:$J$58,0) -> 18
L212: =RANK(L214,Csapat!$C$3:P200,0) -> 7
A213: Név | B213: Sz.év | C213: Kcs. | D213: R. futás | F213: Távolugrás | H213: Klabdahajítás | J213: Összpont | K213: Helyezés
C214: I-II. | E214: =IF(D214<6.19,0,VLOOKUP(D214,rrfut,7,TRUE)) -> 0 | G214: =IF(F214<1.79,0,VLOOKUP(F214,távol,4,TRUE)) -> 0 | I214: =IF(H214<4,0,VLOOKUP(H214,kisl,2,TRUE)) -> 0 | J214: =SUM(E214,G214,I214) -> 0 | K214: =RANK(J214,'E. II. kcs'!$J$3:$J$58,0) -> 17 | L214: =SUM(J214:J219) -> 0
C215: I-II. | E215: =IF(D215<6.19,0,VLOOKUP(D215,rrfut,7,TRUE)) -> 0 | G215: 0 | I215: 0 | J215: =SUM(E215,G215,I215) -> 0 | K215: =RANK(J215,'E. II. kcs'!$J$3:$J$58,0) -> 17
C216: III. | E216: =IF(D216<6.19,0,VLOOKUP(D216,rrfut,7,TRUE)) -> 0 | G216: 0 | I216: 0 | J216: 0 | K216: =RANK(J216,'E. III. kcs'!$J$3:$J$58,0) -> 16
C217: III. | E217: =IF(D217<6.19,0,VLOOKUP(D217,rrfut,7,TRUE)) -> 0 | G217: 0 | I217: 0 | J217: 0 | K217: =RANK(J217,'E. III. kcs'!$J$3:$J$58,0) -> 16
C218: IV. | E218: =IF(D218<6.19,0,VLOOKUP(D218,rfut,5,TRUE)) -> 0 | G218: 0 | I218: 0 | J218: 0 | K218: =RANK(J218,'E. IV. kcs'!$J$3:$J$58,0) -> 18
C219: IV. | E219: 0 | G219: 0 | I219: 0 | J219: 0 | K219: =RANK(J219,'E. IV. kcs'!$J$3:$J$58,0) -> 18
L222: =RANK(L224,Csapat!$C$3:P210,0) -> 7
A223: Név | B223: Sz.év | C223: Kcs. | D223: R. futás | F223: Távolugrás | H223: Klabdahajítás | J223: Összpont | K223: Helyezés
C224: I-II. | E224: =IF(D224<6.19,0,VLOOKUP(D224,rrfut,7,TRUE)) -> 0 | G224: =IF(F224<1.79,0,VLOOKUP(F224,távol,4,TRUE)) -> 0 | I224: =IF(H224<4,0,VLOOKUP(H224,kisl,2,TRUE)) -> 0 | J224: =SUM(E224,G224,I224) -> 0 | K224: =RANK(J224,'E. II. kcs'!$J$3:$J$58,0) -> 17 | L224: =SUM(J224:J229) -> 0
C225: I-II. | E225: =IF(D225<6.19,0,VLOOKUP(D225,rrfut,7,TRUE)) -> 0 | G225: 0 | I225: 0 | J225: =SUM(E225,G225,I225) -> 0 | K225: =RANK(J225,'E. II. kcs'!$J$3:$J$58,0) -> 17
C226: III. | E226: =IF(D226<6.19,0,VLOOKUP(D226,rrfut,7,TRUE)) -> 0 | G226: 0 | I226: 0 | J226: 0 | K226: =RANK(J226,'E. III. kcs'!$J$3:$J$58,0) -> 16
C227: III. | E227: =IF(D227<6.19,0,VLOOKUP(D227,rrfut,7,TRUE)) -> 0 | G227: 0 | I227: 0 | J227: 0 | K227: =RANK(J227,'E. III. kcs'!$J$3:$J$58,0) -> 16
C228: IV. | E228: =IF(D228<6.19,0,VLOOKUP(D228,rfut,5,TRUE)) -> 0 | G228: 0 | I228: 0 | J228: 0 | K228: =RANK(J228,'E. IV. kcs'!$J$3:$J$58,0) -> 18
C229: IV. | E229: 0 | G229: 0 | I229: 0 | J229: 0 | K229: =RANK(J229,'E. IV. kcs'!$J$3:$J$58,0) -> 18
L232: =RANK(L234,Csapat!$C$3:P220,0) -> 7
A233: Név | B233: Sz.év | C233: Kcs. | D233: R. futás | F233: Távolugrás | H233: Klabdahajítás | J233: Összpont | K233: Helyezés
C234: I-II. | E234: =IF(D234<6.19,0,VLOOKUP(D234,rrfut,7,TRUE)) -> 0 | G234: =IF(F234<1.79,0,VLOOKUP(F234,távol,4,TRUE)) -> 0 | I234: =IF(H234<4,0,VLOOKUP(H234,kisl,2,TRUE)) -> 0 | J234: =SUM(E234,G234,I234) -> 0 | K234: =RANK(J234,'E. II. kcs'!$J$3:$J$58,0) -> 17 | L234: =SUM(J234:J239) -> 0
C235: I-II. | E235: =IF(D235<6.19,0,VLOOKUP(D235,rrfut,7,TRUE)) -> 0 | G235: 0 | I235: 0 | J235: =SUM(E235,G235,I235) -> 0 | K235: =RANK(J235,'E. II. kcs'!$J$3:$J$58,0) -> 17
C236: III. | E236: =IF(D236<6.19,0,VLOOKUP(D236,rrfut,7,TRUE)) -> 0 | G236: 0 | I236: 0 | J236: 0 | K236: =RANK(J236,'E. III. kcs'!$J$3:$J$58,0) -> 16
C237: III. | E237: =IF(D237<6.19,0,VLOOKUP(D237,rrfut,7,TRUE)) -> 0 | G237: 0 | I237: 0 | J237: 0 | K237: =RANK(J237,'E. III. kcs'!$J$3:$J$58,0) -> 16
C238: IV. | E238: =IF(D238<6.19,0,VLOOKUP(D238,rfut,5,TRUE)) -> 0 | G238: 0 | I238: 0 | J238: 0 | K238: =RANK(J238,'E. IV. kcs'!$J$3:$J$58,0) -> 18
C239: IV. | E239: 0 | G239: 0 | I239: 0 | J239: 0 | K239: =RANK(J239,'E. IV. kcs'!$J$3:$J$58,0) -> 18
L242: =RANK(L244,Csapat!$C$3:P230,0) -> 7
A243: Név | B243: Sz.év | C243: Kcs. | D243: R. futás | F243: Távolugrás | H243: Klabdahajítás | J243: Összpont | K243: Helyezés
... 14 more rows

Sheet Csapat
A1: Kis iskolák LEÁNY csapatverseny (Sorrendezés Ctrl + z )
A2: Ssz | B2: Iskola | C2: Pont
A3: 1. | B3: =Be!$A$62&CHAR(10)&Be!$A$64&" "&Be!$J$64&" "&Be!$A$65&" "&Be!$J$65&CHAR(10)&Be!$A$66&" "&Be!$J$66&" "&Be!$A$67&" "&Be!$J$67&CHAR(10)&Be!$A$68&" "&Be!$J$68&" "&Be!$A$69&" "&Be!$J$69 -> Hőgyészi Hegyhát Ált. Isk. Horváth Dzsenifer 310 Pallag Vivien 237 Rofrics Fatima 415 Tóth-Bera Dzsenifer 325 Bordás Lara 332 Orsós Nikoletta 315 | C3: =Be!$L$64 -> 1934
A4: 2. | B4: =Be!$A$72&CHAR(10)&Be!$A$74&" "&Be!$J$74&" "&Be!$A$75&" "&Be!$J$75&CHAR(10)&Be!$A$76&" "&Be!$J$76&" "&Be!$A$77&" "&Be!$J$77&CHAR(10)&Be!$A$78&" "&Be!$J$78&" "&Be!$A$79&" "&Be!$J$79 -> Kölesdi Béri Balogh Ádám Ált. Isk. Barkóczi Hanna 203 Szalai Izabella Dzsenna 263 Bencze Vanessza Mária 299 Féder Jázmin 312 Bán Dzsenifer Réka 409 Kalmár Zsófia 361 | C4: =Be!$L$74 -> 1847
A5: 3. | B5: =Be!$A$82&CHAR(10)&Be!$A$84&" "&Be!$J$84&" "&Be!$A$85&" "&Be!$J$85&CHAR(10)&Be!$A$86&" "&Be!$J$86&" "&Be!$A$87&" "&Be!$J$87&CHAR(10)&Be!$A$88&" "&Be!$J$88&" "&Be!$A$89&" "&Be!$J$89 -> BÁI Kakasd Szabó Csenge 289 Dunai Inez 314 Paróczai Dana Eszter 341 Plózel Anna 273 Pesti Lívia 235 Kolozsvári Hilcz Kitti 386 | C5: =Be!$L$84 -> 1838
A6: 4. | B6: =Be!$A$42&CHAR(10)&Be!$A$44&" "&Be!$J$44&" "&Be!$A$45&" "&Be!$J$45&CHAR(10)&Be!$A$46&" "&Be!$J$46&" "&Be!$A$47&" "&Be!$J$47&CHAR(10)&Be!$A$48&" "&Be!$J$48&" "&Be!$A$49&" "&Be!$J$49 -> Teveli Ált. Isk Velikán Nóra 161 Nagy Nóra Veronika 323 Csobot Léna Viktória 345 Salamon Csenge 353 Éri Boglárka 337 Erb Zsüliett 276 | C6: =Be!$L$44 -> 1795
A7: 5. | B7: =Be!$A$92&CHAR(10)&Be!$A$94&" "&Be!$J$94&" "&Be!$A$95&" "&Be!$J$95&CHAR(10)&Be!$A$96&" "&Be!$J$96&" "&Be!$A$97&" "&Be!$J$97&CHAR(10)&Be!$A$98&" "&Be!$J$98&" "&Be!$A$99&" "&Be!$J$99 -> Őcsényi Perczel Mór Ált. Isk. Tóth Míra Maja 302 Kulcsár Lilien 264 Lakó Csenge 361 Sági Tímea 310 Gellér Fanni 240 Naszvadi Hunorka 217 | C7: =Be!$L$94 -> 1694
A8: 6. | B8: =Be!$A$52&CHAR(10)&Be!$A$54&" "&Be!$J$54&" "&Be!$A$55&" "&Be!$J$55&CHAR(10)&Be!$A$56&" "&Be!$J$56&" "&Be!$A$57&" "&Be!$J$57&CHAR(10)&Be!$A$58&" "&Be!$J$58&" "&Be!$A$59&" "&Be!$J$59 -> Várdomb-Alsónána Ált. Isk. Karácsony Dorina 139 Berecz Mercédesz 190 Péter Vivien 306 Sárközi Angéla 302 Keinráth Anna 212 Medveczki Dóra 183 | C8: =Be!$L$54 -> 1332
A9: 7. | B9: =Be!$A$102&CHAR(10)&Be!$A$104&" "&Be!$J$104&" "&Be!$A$105&" "&Be!$J$105&CHAR(10)&Be!$A$106&" "&Be!$J$106&" "&Be!$A$107&" "&Be!$J$107&CHAR(10)&Be!$A$108&" "&Be!$J$108&" "&Be!$A$109&" "&Be!$J$109 -> 0 0 0 0 0 0 | C9: =Be!$L$104 -> 0
A10: 8. | B10: =Be!$A$112&CHAR(10)&Be!$A$114&" "&Be!$J$114&" "&Be!$A$115&" "&Be!$J$115&CHAR(10)&Be!$A$116&" "&Be!$J$116&" "&Be!$A$117&" "&Be!$J$117&CHAR(10)&Be!$A$118&" "&Be!$J$118&" "&Be!$A$119&" "&Be!$J$119 -> 0 0 0 0 0 0 | C10: =Be!$L$114 -> 0
A11: 9. | B11: =Be!$A$122&CHAR(10)&Be!$A$124&" "&Be!$J$124&" "&Be!$A$125&" "&Be!$J$125&CHAR(10)&Be!$A$126&" "&Be!$J$126&" "&Be!$A$127&" "&Be!$J$127&CHAR(10)&Be!$A$128&" "&Be!$J$128&" "&Be!$A$129&" "&Be!$J$129 -> 0 0 0 0 0 0 | C11: =Be!$L$124 -> 0
A12: 10. | B12: =Be!$A$132&CHAR(10)&Be!$A$134&" "&Be!$J$134&" "&Be!$A$135&" "&Be!$J$135&CHAR(10)&Be!$A$136&" "&Be!$J$136&" "&Be!$A$137&" "&Be!$J$137&CHAR(10)&Be!$A$138&" "&Be!$J$138&" "&Be!$A$139&" "&Be!$J$139 -> 0 0 0 0 0 0 | C12: =Be!$L$134 -> 0
A13: 11. | B13: =Be!$A$142&CHAR(10)&Be!$A$144&" "&Be!$J$144&" "&Be!$A$145&" "&Be!$J$145&CHAR(10)&Be!$A$146&" "&Be!$J$146&" "&Be!$A$147&" "&Be!$J$147&CHAR(10)&Be!$A$148&" "&Be!$J$148&" "&Be!$A$149&" "&Be!$J$149 -> 0 0 0 0 0 0 | C13: =Be!$L$144 -> 0
A14: 12. | B14: =Be!$A$152&CHAR(10)&Be!$A$154&" "&Be!$J$154&" "&Be!$A$155&" "&Be!$J$155&CHAR(10)&Be!$A$156&" "&Be!$J$156&" "&Be!$A$157&" "&Be!$J$157&CHAR(10)&Be!$A$158&" "&Be!$J$158&" "&Be!$A$159&" "&Be!$J$159 -> 0 0 0 0 0 0 | C14: =Be!$L$154 -> 0
A15: 13. | B15: =Be!$A$162&CHAR(10)&Be!$A$164&" "&Be!$J$164&" "&Be!$A$165&" "&Be!$J$165&CHAR(10)&Be!$A$166&" "&Be!$J$166&" "&Be!$A$167&" "&Be!$J$167&CHAR(10)&Be!$A$168&" "&Be!$J$168&" "&Be!$A$169&" "&Be!$J$169 -> 0 0 0 0 0 0 | C15: =Be!$L$164 -> 0
A16: 14. | B16: =Be!$A$172&CHAR(10)&Be!$A$174&" "&Be!$J$174&" "&Be!$A$175&" "&Be!$J$175&CHAR(10)&Be!$A$176&" "&Be!$J$176&" "&Be!$A$177&" "&Be!$J$177&CHAR(10)&Be!$A$178&" "&Be!$J$178&" "&Be!$A$179&" "&Be!$J$179 -> 0 0 0 0 0 0 | C16: =Be!$L$174 -> 0
A17: 15. | B17: =Be!$A$182&CHAR(10)&Be!$A$184&" "&Be!$J$184&" "&Be!$A$185&" "&Be!$J$185&CHAR(10)&Be!$A$186&" "&Be!$J$186&" "&Be!$A$187&" "&Be!$J$187&CHAR(10)&Be!$A$188&" "&Be!$J$188&" "&Be!$A$189&" "&Be!$J$189 -> 0 0 0 0 0 0 | C17: =Be!$L$184 -> 0
A18: 16. | B18: =Be!$A$192&CHAR(10)&Be!$A$194&" "&Be!$J$194&" "&Be!$A$195&" "&Be!$J$195&CHAR(10)&Be!$A$196&" "&Be!$J$196&" "&Be!$A$197&" "&Be!$J$197&CHAR(10)&Be!$A$198&" "&Be!$J$198&" "&Be!$A$199&" "&Be!$J$199 -> 0 0 0 0 0 0 | C18: =Be!$L$194 -> 0
A19: 17. | B19: =Be!$A$202&CHAR(10)&Be!$A$204&" "&Be!$J$204&" "&Be!$A$205&" "&Be!$J$205&CHAR(10)&Be!$A$206&" "&Be!$J$206&" "&Be!$A$207&" "&Be!$J$207&CHAR(10)&Be!$A$208&" "&Be!$J$208&" "&Be!$A$209&" "&Be!$J$209 -> 0 0 0 0 0 0 | C19: =Be!$L$204 -> 0
A20: 18. | B20: =Be!$A$212&CHAR(10)&Be!$A$214&" "&Be!$J$214&" "&Be!$A$215&" "&Be!$J$215&CHAR(10)&Be!$A$216&" "&Be!$J$216&" "&Be!$A$217&" "&Be!$J$217&CHAR(10)&Be!$A$218&" "&Be!$J$218&" "&Be!$A$219&" "&Be!$J$219 -> 0 0 0 0 0 0 | C20: =Be!$L$214 -> 0
A21: 19. | B21: =Be!$A$222&CHAR(10)&Be!$A$224&" "&Be!$J$224&" "&Be!$A$225&" "&Be!$J$225&CHAR(10)&Be!$A$226&" "&Be!$J$226&" "&Be!$A$227&" "&Be!$J$227&CHAR(10)&Be!$A$228&" "&Be!$J$228&" "&Be!$A$229&" "&Be!$J$229 -> 0 0 0 0 0 0 | C21: =Be!$L$224 -> 0
A22: 20. | B22: =Be!$A$232&CHAR(10)&Be!$A$234&" "&Be!$J$234&" "&Be!$A$235&" "&Be!$J$235&CHAR(10)&Be!$A$236&" "&Be!$J$236&" "&Be!$A$237&" "&Be!$J$237&CHAR(10)&Be!$A$238&" "&Be!$J$238&" "&Be!$A$239&" "&Be!$J$239 -> 0 0 0 0 0 0 | C22: =Be!$L$234 -> 0
A23: 21. | B23: =Be!$A$242&CHAR(10)&Be!$A$244&" "&Be!$J$244&" "&Be!$A$245&" "&Be!$J$245&CHAR(10)&Be!$A$246&" "&Be!$J$246&" "&Be!$A$247&" "&Be!$J$247&CHAR(10)&Be!$A$248&" "&Be!$J$248&" "&Be!$A$249&" "&Be!$J$249 -> 0 0 0 0 0 0 | C23: =Be!$L$244 -> 0
A24: 22. | B24: =Be!$A$252&CHAR(10)&Be!$A$254&" "&Be!$J$254&" "&Be!$A$255&" "&Be!$J$255&CHAR(10)&Be!$A$256&" "&Be!$J$256&" "&Be!$A$257&" "&Be!$J$257&CHAR(10)&Be!$A$258&" "&Be!$J$258&" "&Be!$A$259&" "&Be!$J$259 -> 0 0 0 0 0 0 | C24: =Be!$L$254 -> 0

Sheet E. II. kcs
A1: Kis iskolák II. korcsoport LEÁNY EGYÉNI végeredmény (Sorbarendezés Ctrl + t )
A2: Ssz | B2: Név | C2: Szév | D2: 100 m | E2: p | F2: Távol | G2: p | H2: Kisl | I2: p | J2: Összp | L2: Iskola
A3: 1. | B3: =Be!A45 -> Nagy Nóra Veronika | C3: =Be!B45 -> 2011 | D3: =Be!D45 -> 9.5 | E3: =Be!E45 -> 161 | F3: =Be!F45 -> 3.62 | G3: =Be!G45 -> 102 | H3: =Be!H45 -> 20.65 | I3: =Be!I45 -> 60 | J3: =Be!J45 -> 323 | L3: =Be!A42 -> Teveli Ált. Isk
A4: 2. | B4: =Be!A85 -> Dunai Inez | C4: =Be!B85 -> 2011 | D4: =Be!D85 -> 9.8 | E4: =Be!E85 -> 147 | F4: =Be!F85 -> 3.22 | G4: =Be!G85 -> 78 | H4: =Be!H85 -> 28.05 | I4: =Be!I85 -> 89 | J4: =Be!J85 -> 314 | L4: =Be!A82 -> BÁI Kakasd
A5: 3. | B5: =Be!A64 -> Horváth Dzsenifer | C5: =Be!B64 -> 2011 | D5: =Be!D64 -> 10 | E5: =Be!E64 -> 138 | F5: =Be!F64 -> 3.11 | G5: =Be!G64 -> 72 | H5: =Be!H64 -> 30.82 | I5: =Be!I64 -> 100 | J5: =Be!J64 -> 310 | L5: =Be!A62 -> Hőgyészi Hegyhát Ált. Isk.
A6: 4. | B6: =Be!A94 -> Tóth Míra Maja | C6: =Be!B94 -> 2012 | D6: =Be!D94 -> 9.5 | E6: =Be!E94 -> 161 | F6: =Be!F94 -> 3.43 | G6: =Be!G94 -> 91 | H6: =Be!H94 -> 18.03 | I6: =Be!I94 -> 50 | J6: =Be!J94 -> 302 | L6: =Be!A92 -> Őcsényi Perczel Mór Ált. Isk.
A7: 5. | B7: =Be!A84 -> Szabó Csenge | C7: =Be!B84 -> 2012 | D7: =Be!D84 -> 10.4 | E7: =Be!E84 -> 121 | F7: =Be!F84 -> 3.61 | G7: =Be!G84 -> 101 | H7: =Be!H84 -> 22.4 | I7: =Be!I84 -> 67 | J7: =Be!J84 -> 289 | L7: =Be!A82 -> BÁI Kakasd
A8: 6. | B8: =Be!A5 -> Molnár Dorka | C8: =Be!B5 -> 2011 | D8: =Be!D5 -> 10.7 | E8: =Be!E5 -> 108 | F8: =Be!F5 -> 3.13 | G8: =Be!G5 -> 73 | H8: =Be!H5 -> 26.74 | I8: =Be!I5 -> 84 | J8: =Be!J5 -> 265 | L8: =Be!L5 -> BÁI Kakasd
A9: 7. | B9: =Be!A95 -> Kulcsár Lilien | C9: =Be!B95 -> 2011 | D9: =Be!D95 -> 10.4 | E9: =Be!E95 -> 121 | F9: =Be!F95 -> 2.87 | G9: =Be!G95 -> 58 | H9: =Be!H95 -> 27 | I9: =Be!I95 -> 85 | J9: =Be!J95 -> 264 | L9: =Be!A92 -> Őcsényi Perczel Mór Ált. Isk.
A10: 8. | B10: =Be!A6 -> Fekete Aporka | C10: =Be!B6 -> 2011 | D10: =Be!D6 -> 10.6 | E10: =Be!E6 -> 112 | F10: =Be!F6 -> 3.41 | G10: =Be!G6 -> 89 | H10: =Be!H6 -> 21.26 | I10: =Be!I6 -> 63 | J10: =Be!J6 -> 264 | L10: =Be!L6 -> BÁI Kakasd
A11: 9. | B11: =Be!A75 -> Szalai Izabella Dzsenna | C11: =Be!B75 -> 2011 | D11: =Be!D75 -> 10.5 | E11: =Be!E75 -> 116 | F11: =Be!F75 -> 3.02 | G11: =Be!G75 -> 67 | H11: =Be!H75 -> 25.7 | I11: =Be!I75 -> 80 | J11: =Be!J75 -> 263 | L11: =Be!A72 -> Kölesdi Béri Balogh Ádám Ált. Isk.
A12: 10. | B12: =Be!A7 -> Szép Letícia | C12: =Be!B7 -> 2011 | D12: =Be!D7 -> 10.1 | E12: =Be!E7 -> 134 | F12: =Be!F7 -> 3.16 | G12: =Be!G7 -> 75 | H12: =Be!H7 -> 16.6 | I12: =Be!I7 -> 45 | J12: =Be!J7 -> 254 | L12: =Be!L7 -> Decs
A13: 11. | B13: =Be!A65 -> Pallag Vivien | C13: =Be!B65 -> 2011 | D13: =Be!D65 -> 10.5 | E13: =Be!E65 -> 116 | F13: =Be!F65 -> 2.81 | G13: =Be!G65 -> 54 | H13: =Be!H65 -> 22.35 | I13: =Be!I65 -> 67 | J13: =Be!J65 -> 237 | L13: =Be!A62 -> Hőgyészi Hegyhát Ált. Isk.
A14: 12. | B14: =Be!A74 -> Barkóczi Hanna | C14: =Be!B74 -> 2012 | D14: =Be!D74 -> 11 | E14: =Be!E74 -> 95 | F14: =Be!F74 -> 2.84 | G14: =Be!G74 -> 56 | H14: =Be!H74 -> 18.64 | I14: =Be!I74 -> 52 | J14: =Be!J74 -> 203 | L14: =Be!A72 -> Kölesdi Béri Balogh Ádám Ált. Isk.
A15: 13. | B15: =Be!A55 -> Berecz Mercédesz | C15: =Be!B55 -> 2012 | D15: =Be!D55 -> 10.8 | E15: =Be!E55 -> 103 | F15: =Be!F55 -> 2.4 | G15: =Be!G55 -> 32 | H15: =Be!H55 -> 19.3 | I15: =Be!I55 -> 55 | J15: =Be!J55 -> 190 | L15: =Be!A52 -> Várdomb-Alsónána Ált. Isk.
A16: 14. | B16: =Be!A8 -> Beck Tímea | C16: =Be!B8 -> 2013 | D16: =Be!D8 -> 11 | E16: =Be!E8 -> 95 | F16: =Be!F8 -> 2.76 | G16: =Be!G8 -> 52 | H16: =Be!H8 -> 9.2 | I16: =Be!I8 -> 18 | J16: =Be!J8 -> 165 | L16: =Be!L8 -> Várdomb
A17: 15. | B17: =Be!A44 -> Velikán Nóra | C17: =Be!B44 -> 2013 | D17: =Be!D44 -> 11.8 | E17: =Be!E44 -> 63 | F17: =Be!F44 -> 2.62 | G17: =Be!G44 -> 44 | H17: =Be!H44 -> 19.07 | I17: =Be!I44 -> 54 | J17: =Be!J44 -> 161 | L17: =Be!A42 -> Teveli Ált. Isk
A18: 16. | B18: =Be!A54 -> Karácsony Dorina | C18: =Be!B54 -> 2013 | D18: =Be!D54 -> 11.6 | E18: =Be!E54 -> 71 | F18: =Be!F54 -> 2.31 | G18: =Be!G54 -> 27 | H18: =Be!H54 -> 15.64 | I18: =Be!I54 -> 41 | J18: =Be!J54 -> 139 | L18: =Be!A52 -> Várdomb-Alsónána Ált. Isk.
A19: 17. | B19: =Be!#REF! ->  | C19: =Be!B4 -> 0 | D19: =Be!D4 -> 0 | E19: =Be!E4 -> 0 | F19: =Be!F4 -> 0 | G19: =Be!G4 -> 0 | H19: =Be!H4 -> 0 | I19: =Be!I4 -> 0 | J19: =Be!J4 -> 0 | L19: =Be!L4 -> 0
A20: 18. | B20: =Be!A104 -> 0 | C20: =Be!B104 -> 0 | D20: =Be!D104 -> 0 | E20: =Be!E104 -> 0 | F20: =Be!F104 -> 0 | G20: =Be!G104 -> 0 | H20: =Be!H104 -> 0 | I20: =Be!I104 -> 0 | J20: =Be!J104 -> 0 | L20: =Be!A102 -> 0
A21: 19. | B21: =Be!A105 -> 0 | C21: =Be!B105 -> 0 | D21: =Be!D105 -> 0 | E21: =Be!E105 -> 0 | F21: =Be!F105 -> 0 | G21: =Be!G105 -> 0 | H21: =Be!H105 -> 0 | I21: =Be!I105 -> 0 | J21: =Be!J105 -> 0 | L21: =Be!A102 -> 0
A22: 20. | B22: =Be!A114 -> 0 | C22: =Be!B114 -> 0 | D22: =Be!D114 -> 0 | E22: =Be!E114 -> 0 | F22: =Be!F114 -> 0 | G22: =Be!G114 -> 0 | H22: =Be!H114 -> 0 | I22: =Be!I114 -> 0 | J22: =Be!J114 -> 0 | L22: =Be!A112 -> 0
A23: 21. | B23: =Be!A115 -> 0 | C23: =Be!B115 -> 0 | D23: =Be!D115 -> 0 | E23: =Be!E115 -> 0 | F23: =Be!F115 -> 0 | G23: =Be!G115 -> 0 | H23: =Be!H115 -> 0 | I23: =Be!I115 -> 0 | J23: =Be!J115 -> 0 | L23: =Be!A112 -> 0
A24: 22. | B24: =Be!A124 -> 0 | C24: =Be!B124 -> 0 | D24: =Be!D124 -> 0 | E24: =Be!E124 -> 0 | F24: =Be!F124 -> 0 | G24: =Be!G124 -> 0 | H24: =Be!H124 -> 0 | I24: =Be!I124 -> 0 | J24: =Be!J124 -> 0 | L24: =Be!A122 -> 0
A25: 23. | B25: =Be!A125 -> 0 | C25: =Be!B125 -> 0 | D25: =Be!D125 -> 0 | E25: =Be!E125 -> 0 | F25: =Be!F125 -> 0 | G25: =Be!G125 -> 0 | H25: =Be!H125 -> 0 | I25: =Be!I125 -> 0 | J25: =Be!J125 -> 0 | L25: =Be!A122 -> 0
A26: 24. | B26: =Be!A134 -> 0 | C26: =Be!B134 -> 0 | D26: =Be!D134 -> 0 | E26: =Be!E134 -> 0 | F26: =Be!F134 -> 0 | G26: =Be!G134 -> 0 | H26: =Be!H134 -> 0 | I26: =Be!I134 -> 0 | J26: =Be!J134 -> 0 | L26: =Be!A132 -> 0
A27: 25. | B27: =Be!A135 -> 0 | C27: =Be!B135 -> 0 | D27: =Be!D135 -> 0 | E27: =Be!E135 -> 0 | F27: =Be!F135 -> 0 | G27: =Be!G135 -> 0 | H27: =Be!H135 -> 0 | I27: =Be!I135 -> 0 | J27: =Be!J135 -> 0 | L27: =Be!A132 -> 0
A28: 26. | B28: =Be!A144 -> 0 | C28: =Be!B144 -> 0 | D28: =Be!D144 -> 0 | E28: =Be!E144 -> 0 | F28: =Be!F144 -> 0 | G28: =Be!G144 -> 0 | H28: =Be!H144 -> 0 | I28: =Be!I144 -> 0 | J28: =Be!J144 -> 0 | L28: =Be!A142 -> 0
A29: 27. | B29: =Be!A145 -> 0 | C29: =Be!B145 -> 0 | D29: =Be!D145 -> 0 | E29: =Be!E145 -> 0 | F29: =Be!F145 -> 0 | G29: =Be!G145 -> 0 | H29: =Be!H145 -> 0 | I29: =Be!I145 -> 0 | J29: =Be!J145 -> 0 | L29: =Be!A142 -> 0
A30: 28. | B30: =Be!A154 -> 0 | C30: =Be!B154 -> 0 | D30: =Be!D154 -> 0 | E30: =Be!E154 -> 0 | F30: =Be!F154 -> 0 | G30: =Be!G154 -> 0 | H30: =Be!H154 -> 0 | I30: =Be!I154 -> 0 | J30: =Be!J154 -> 0 | L30: =Be!A152 -> 0
A31: 29. | B31: =Be!A155 -> 0 | C31: =Be!B155 -> 0 | D31: =Be!D155 -> 0 | E31: =Be!E155 -> 0 | F31: =Be!F155 -> 0 | G31: =Be!G155 -> 0 | H31: =Be!H155 -> 0 | I31: =Be!I155 -> 0 | J31: =Be!J155 -> 0 | L31: =Be!A152 -> 0
A32: 30. | B32: =Be!A164 -> 0 | C32: =Be!B164 -> 0 | D32: =Be!D164 -> 0 | E32: =Be!E164 -> 0 | F32: =Be!F164 -> 0 | G32: =Be!G164 -> 0 | H32: =Be!H164 -> 0 | I32: =Be!I164 -> 0 | J32: =Be!J164 -> 0 | L32: =Be!A162 -> 0
A33: 31. | B33: =Be!A165 -> 0 | C33: =Be!B165 -> 0 | D33: =Be!D165 -> 0 | E33: =Be!E165 -> 0 | F33: =Be!F165 -> 0 | G33: =Be!G165 -> 0 | H33: =Be!H165 -> 0 | I33: =Be!I165 -> 0 | J33: =Be!J165 -> 0 | L33: =Be!A162 -> 0
A34: 32. | B34: =Be!A174 -> 0 | C34: =Be!B174 -> 0 | D34: =Be!D174 -> 0 | E34: =Be!E174 -> 0 | F34: =Be!F174 -> 0 | G34: =Be!G174 -> 0 | H34: =Be!H174 -> 0 | I34: =Be!I174 -> 0 | J34: =Be!J174 -> 0 | L34: =Be!A172 -> 0
A35: 33. | B35: =Be!A175 -> 0 | C35: =Be!B175 -> 0 | D35: =Be!D175 -> 0 | E35: =Be!E175 -> 0 | F35: =Be!F175 -> 0 | G35: =Be!G175 -> 0 | H35: =Be!H175 -> 0 | I35: =Be!I175 -> 0 | J35: =Be!J175 -> 0 | L35: =Be!A172 -> 0
A36: 34. | B36: =Be!A184 -> 0 | C36: =Be!B184 -> 0 | D36: =Be!D184 -> 0 | E36: =Be!E184 -> 0 | F36: =Be!F184 -> 0 | G36: =Be!G184 -> 0 | H36: =Be!H184 -> 0 | I36: =Be!I184 -> 0 | J36: =Be!J184 -> 0 | L36: =Be!A182 -> 0
A37: 35. | B37: =Be!A185 -> 0 | C37: =Be!B185 -> 0 | D37: =Be!D185 -> 0 | E37: =Be!E185 -> 0 | F37: =Be!F185 -> 0 | G37: =Be!G185 -> 0 | H37: =Be!H185 -> 0 | I37: =Be!I185 -> 0 | J37: =Be!J185 -> 0 | L37: =Be!A182 -> 0
A38: 36. | B38: =Be!A194 -> 0 | C38: =Be!B194 -> 0 | D38: =Be!D194 -> 0 | E38: =Be!E194 -> 0 | F38: =Be!F194 -> 0 | G38: =Be!G194 -> 0 | H38: =Be!H194 -> 0 | I38: =Be!I194 -> 0 | J38: =Be!J194 -> 0 | L38: =Be!A192 -> 0
A39: 37. | B39: =Be!A195 -> 0 | C39: =Be!B195 -> 0 | D39: =Be!D195 -> 0 | E39: =Be!E195 -> 0 | F39: =Be!F195 -> 0 | G39: =Be!G195 -> 0 | H39: =Be!H195 -> 0 | I39: =Be!I195 -> 0 | J39: =Be!J195 -> 0 | L39: =Be!A192 -> 0
A40: 38. | B40: =Be!A204 -> 0 | C40: =Be!B204 -> 0 | D40: =Be!D204 -> 0 | E40: =Be!E204 -> 0 | F40: =Be!F204 -> 0 | G40: =Be!G204 -> 0 | H40: =Be!H204 -> 0 | I40: =Be!I204 -> 0 | J40: =Be!J204 -> 0 | L40: =Be!A202 -> 0
A41: 39. | B41: =Be!A205 -> 0 | C41: =Be!B205 -> 0 | D41: =Be!D205 -> 0 | E41: =Be!E205 -> 0 | F41: =Be!F205 -> 0 | G41: =Be!G205 -> 0 | H41: =Be!H205 -> 0 | I41: =Be!I205 -> 0 | J41: =Be!J205 -> 0 | L41: =Be!A202 -> 0
A42: 40. | B42: =Be!A214 -> 0 | C42: =Be!B214 -> 0 | D42: =Be!D214 -> 0 | E42: =Be!E214 -> 0 | F42: =Be!F214 -> 0 | G42: =Be!G214 -> 0 | H42: =Be!H214 -> 0 | I42: =Be!I214 -> 0 | J42: =Be!J214 -> 0 | L42: =Be!A212 -> 0
A43: 41. | B43: =Be!A215 -> 0 | C43: =Be!B215 -> 0 | D43: =Be!D215 -> 0 | E43: =Be!E215 -> 0 | F43: =Be!F215 -> 0 | G43: =Be!G215 -> 0 | H43: =Be!H215 -> 0 | I43: =Be!I215 -> 0 | J43: =Be!J215 -> 0 | L43: =Be!A212 -> 0
A44: 42. | B44: =Be!A224 -> 0 | C44: =Be!B224 -> 0 | D44: =Be!D224 -> 0 | E44: =Be!E224 -> 0 | F44: =Be!F224 -> 0 | G44: =Be!G224 -> 0 | H44: =Be!H224 -> 0 | I44: =Be!I224 -> 0 | J44: =Be!J224 -> 0 | L44: =Be!A222 -> 0
A45: 43. | B45: =Be!A225 -> 0 | C45: =Be!B225 -> 0 | D45: =Be!D225 -> 0 | E45: =Be!E225 -> 0 | F45: =Be!F225 -> 0 | G45: =Be!G225 -> 0 | H45: =Be!H225 -> 0 | I45: =Be!I225 -> 0 | J45: =Be!J225 -> 0 | L45: =Be!A222 -> 0
A46: 44. | B46: =Be!A234 -> 0 | C46: =Be!B234 -> 0 | D46: =Be!D234 -> 0 | E46: =Be!E234 -> 0 | F46: =Be!F234 -> 0 | G46: =Be!G234 -> 0 | H46: =Be!H234 -> 0 | I46: =Be!I234 -> 0 | J46: =Be!J234 -> 0 | L46: =Be!A232 -> 0
A47: 45. | B47: =Be!A235 -> 0 | C47: =Be!B235 -> 0 | D47: =Be!D235 -> 0 | E47: =Be!E235 -> 0 | F47: =Be!F235 -> 0 | G47: =Be!G235 -> 0 | H47: =Be!H235 -> 0 | I47: =Be!I235 -> 0 | J47: =Be!J235 -> 0 | L47: =Be!A232 -> 0
A48: 46. | B48: =Be!A244 -> 0 | C48: =Be!B244 -> 0 | D48: =Be!D244 -> 0 | E48: =Be!E244 -> 0 | F48: =Be!F244 -> 0 | G48: =Be!G244 -> 0 | H48: =Be!H244 -> 0 | I48: =Be!I244 -> 0 | J48: =Be!J244 -> 0 | L48: =Be!A242 -> 0
A49: 47. | B49: =Be!A245 -> 0 | C49: =Be!B245 -> 0 | D49: =Be!D245 -> 0 | E49: =Be!E245 -> 0 | F49: =Be!F245 -> 0 | G49: =Be!G245 -> 0 | H49: =Be!H245 -> 0 | I49: =Be!I245 -> 0 | J49: =Be!J245 -> 0 | L49: =Be!A242 -> 0
A50: 48. | B50: =Be!A254 -> 0 | C50: =Be!B254 -> 0 | D50: =Be!D254 -> 0 | E50: =Be!E254 -> 0 | F50: =Be!F254 -> 0 | G50: =Be!G254 -> 0 | H50: =Be!H254 -> 0 | I50: =Be!I254 -> 0 | J50: =Be!J254 -> 0 | L50: =Be!A252 -> 0
A51: 49. | B51: =Be!A255 -> 0 | C51: =Be!B255 -> 0 | D51: =Be!D255 -> 0 | E51: =Be!E255 -> 0 | F51: =Be!F255 -> 0 | G51: =Be!G255 -> 0 | H51: =Be!H255 -> 0 | I51: =Be!I255 -> 0 | J51: =Be!J255 -> 0 | L51: =Be!A252 -> 0
A52: 50. | B52: =Be!A9 -> 0 | C52: =Be!B9 -> 0 | D52: =Be!D9 -> 0 | E52: =Be!E9 -> 0 | F52: =Be!F9 -> 0 | G52: =Be!G9 -> 0 | H52: =Be!H9 -> 0 | I52: =Be!I9 -> 0 | J52: =Be!J9 -> 0 | L52: =Be!L9 -> 0
A53: 51. | B53: =Be!A10 -> 0 | C53: =Be!B10 -> 0 | D53: =Be!D10 -> 0 | E53: =Be!E10 -> 0 | F53: =Be!F10 -> 0 | G53: =Be!G10 -> 0 | H53: =Be!H10 -> 0 | I53: =Be!I10 -> 0 | J53: =Be!J10 -> 0 | L53: =Be!L10 -> 0
A54: 52. | B54: =Be!A11 -> 0 | C54: =Be!B11 -> 0 | D54: =Be!D11 -> 0 | E54: =Be!E11 -> 0 | F54: =Be!F11 -> 0 | G54: =Be!G11 -> 0 | H54: =Be!H11 -> 0 | I54: =Be!I11 -> 0 | J54: =Be!J11 -> 0 | L54: =Be!L11 -> 0
A55: 53. | B55: =Be!A12 -> 0 | C55: =Be!B12 -> 0 | D55: =Be!D12 -> 0 | E55: =Be!E12 -> 0 | F55: =Be!F12 -> 0 | G55: =Be!G12 -> 0 | H55: =Be!H12 -> 0 | I55: =Be!I12 -> 0 | J55: =Be!J12 -> 0 | L55: =Be!L12 -> 0
A56: 54. | B56: =Be!A13 -> 0 | C56: =Be!B13 -> 0 | D56: =Be!D13 -> 0 | E56: =Be!E13 -> 0 | F56: =Be!F13 -> 0 | G56: =Be!G13 -> 0 | H56: =Be!H13 -> 0 | I56: =Be!I13 -> 0 | J56: =Be!J13 -> 0 | L56: =Be!L13 -> 0
A57: 55. | B57: =Be!A14 -> 0 | C57: =Be!B14 -> 0 | D57: =Be!D14 -> 0 | E57: =Be!E14 -> 0 | F57: =Be!F14 -> 0 | G57: =Be!G14 -> 0 | H57: =Be!H14 -> 0 | I57: =Be!I14 -> 0 | J57: =Be!J14 -> 0 | L57: =Be!L14 -> 0
A58: 56. | B58: =Be!A15 -> 0 | C58: =Be!B15 -> 0 | D58: =Be!D15 -> 0 | E58: =Be!E15 -> 0 | F58: =Be!F15 -> 0 | G58: =Be!G15 -> 0 | H58: =Be!H15 -> 0 | I58: =Be!I15 -> 0 | J58: =Be!J15 -> 0 | L58: =Be!L15 -> 0
A134: 133.
A135: 134.
A136: 135.
A137: 136.
A138: 137.
A139: 138.
A140: 139.
A141: 140.
A142: 141.
A143: 142.
A144: 143.
A145: 144.
A146: 145.
A147: 146.
A148: 147.
A149: 148.
A150: 149.
A151: 150.
A152: 151.
A153: 152.
A154: 153.
A155: 154.

Sheet E. III. kcs
A1: Kis iskolák III. korcsoport LEÁNY EGYÉNI végeredmény (Sorbarendezés Ctrl + f )
A2: Ssz | B2: Név | C2: Szév | D2: 100 m | E2: p | F2: Távol | G2: p | H2: Kisl | I2: p | J2: Összp | L2: Iskola
A3: 1. | B3: =Be!A16 -> László Amanda | C3: =Be!B16 -> 2010 | D3: =Be!D16 -> 8.9 | E3: =Be!E16 -> 191 | F3: =Be!F16 -> 3.75 | G3: =Be!G16 -> 110 | H3: =Be!H16 -> 38.9 | I3: =Be!I16 -> 135 | J3: =Be!J16 -> 436 | L3: =Be!L16 -> cikó
A4: 2. | B4: =Be!A66 -> Rofrics Fatima | C4: =Be!B66 -> 2010 | D4: =Be!D66 -> 8.9 | E4: =Be!E66 -> 191 | F4: =Be!F66 -> 3.61 | G4: =Be!G66 -> 101 | H4: =Be!H66 -> 36.14 | I4: =Be!I66 -> 123 | J4: =Be!J66 -> 415 | L4: =Be!A62 -> Hőgyészi Hegyhát Ált. Isk.
A5: 3. | B5: =Be!A96 -> Lakó Csenge | C5: =Be!B96 -> 2009 | D5: =Be!D96 -> 9.8 | E5: =Be!E96 -> 147 | F5: =Be!F96 -> 4.03 | G5: =Be!G96 -> 128 | H5: =Be!H96 -> 27.28 | I5: =Be!I96 -> 86 | J5: =Be!J96 -> 361 | L5: =Be!A92 -> Őcsényi Perczel Mór Ált. Isk.
A6: 4. | B6: =Be!A47 -> Salamon Csenge | C6: =Be!B47 -> 2009 | D6: =Be!D47 -> 9.7 | E6: =Be!E47 -> 152 | F6: =Be!F47 -> 3.48 | G6: =Be!G47 -> 93 | H6: =Be!H47 -> 32.7 | I6: =Be!I47 -> 108 | J6: =Be!J47 -> 353 | L6: =Be!A42 -> Teveli Ált. Isk
A7: 5. | B7: =Be!A46 -> Csobot Léna Viktória | C7: =Be!B46 -> 2010 | D7: =Be!D46 -> 9.7 | E7: =Be!E46 -> 152 | F7: =Be!F46 -> 3.74 | G7: =Be!G46 -> 109 | H7: =Be!H46 -> 26.8 | I7: =Be!I46 -> 84 | J7: =Be!J46 -> 345 | L7: =Be!A42 -> Teveli Ált. Isk
A8: 6. | B8: =Be!A86 -> Paróczai Dana Eszter | C8: =Be!B86 -> 2010 | D8: =Be!D86 -> 9.4 | E8: =Be!E86 -> 166 | F8: =Be!F86 -> 3.66 | G8: =Be!G86 -> 104 | H8: =Be!H86 -> 23.28 | I8: =Be!I86 -> 71 | J8: =Be!J86 -> 341 | L8: =Be!A82 -> BÁI Kakasd
A9: 7. | B9: =Be!A67 -> Tóth-Bera Dzsenifer | C9: =Be!B67 -> 2009 | D9: =Be!D67 -> 9.07 | E9: =Be!E67 -> 182 | F9: =Be!F67 -> 2.89 | G9: =Be!G67 -> 59 | H9: =Be!H67 -> 26.6 | I9: =Be!I67 -> 84 | J9: =Be!J67 -> 325 | L9: =Be!A62 -> Hőgyészi Hegyhát Ált. Isk.
A10: 8. | B10: =Be!A18 -> Halvax Dominika | C10: =Be!B18 -> 2010 | D10: =Be!D18 -> 9.5 | E10: =Be!E18 -> 161 | F10: =Be!F18 -> 3.41 | G10: =Be!G18 -> 89 | H10: =Be!H18 -> 22.12 | I10: =Be!I18 -> 66 | J10: =Be!J18 -> 316 | L10: =Be!L18 -> Decs
A11: 9. | B11: =Be!A77 -> Féder Jázmin | C11: =Be!B77 -> 2009 | D11: =Be!D77 -> 10 | E11: =Be!E77 -> 138 | F11: =Be!F77 -> 3.52 | G11: =Be!G77 -> 96 | H11: =Be!H77 -> 25.1 | I11: =Be!I77 -> 78 | J11: =Be!J77 -> 312 | L11: =Be!A72 -> Kölesdi Béri Balogh Ádám Ált. Isk.
A12: 10. | B12: =Be!A97 -> Sági Tímea | C12: =Be!B97 -> 2009 | D12: =Be!D97 -> 9.7 | E12: =Be!E97 -> 152 | F12: =Be!F97 -> 3.56 | G12: =Be!G97 -> 98 | H12: =Be!H97 -> 20.5 | I12: =Be!I97 -> 60 | J12: =Be!J97 -> 310 | L12: =Be!A92 -> Őcsényi Perczel Mór Ált. Isk.
A13: 11. | B13: =Be!A56 -> Péter Vivien | C13: =Be!B56 -> 2010 | D13: =Be!D56 -> 9.5 | E13: =Be!E56 -> 161 | F13: =Be!F56 -> 3.48 | G13: =Be!G56 -> 93 | H13: =Be!H56 -> 18.68 | I13: =Be!I56 -> 52 | J13: =Be!J56 -> 306 | L13: =Be!A52 -> Várdomb-Alsónána Ált. Isk.
A14: 12. | B14: =Be!A57 -> Sárközi Angéla | C14: =Be!B57 -> 2009 | D14: =Be!D57 -> 9.3 | E14: =Be!E57 -> 171 | F14: =Be!F57 -> 3.1 | G14: =Be!G57 -> 71 | H14: =Be!H57 -> 20.64 | I14: =Be!I57 -> 60 | J14: =Be!J57 -> 302 | L14: =Be!A52 -> Várdomb-Alsónána Ált. Isk.
A15: 13. | B15: =Be!A19 -> Rofsics Vanessza | C15: =Be!B19 -> 2010 | D15: =Be!D19 -> 9.8 | E15: =Be!E19 -> 147 | F15: =Be!F19 -> 3.11 | G15: =Be!G19 -> 72 | H15: =Be!H19 -> 26.2 | I15: =Be!I19 -> 82 | J15: =Be!J19 -> 301 | L15: =Be!L19 -> Hőgyész
A16: 14. | B16: =Be!A76 -> Bencze Vanessza Mária | C16: =Be!B76 -> 2009 | D16: =Be!D76 -> 9.5 | E16: =Be!E76 -> 161 | F16: =Be!F76 -> 2.77 | G16: =Be!G76 -> 52 | H16: =Be!H76 -> 27.3 | I16: =Be!I76 -> 86 | J16: =Be!J76 -> 299 | L16: =Be!A72 -> Kölesdi Béri Balogh Ádám Ált. Isk.
A17: 15. | B17: =Be!A87 -> Plózel Anna | C17: =Be!B87 -> 2010 | D17: =Be!D87 -> 10 | E17: =Be!E87 -> 138 | F17: =Be!F87 -> 2.94 | G17: =Be!G87 -> 62 | H17: =Be!H87 -> 23.79 | I17: =Be!I87 -> 73 | J17: =Be!J87 -> 273 | L17: =Be!A82 -> BÁI Kakasd
A18: 16. | B18: =Be!#REF! ->  | C18: =Be!B17 -> 0 | D18: =Be!D17 -> 0 | E18: =Be!E17 -> 0 | F18: =Be!F17 -> 0 | G18: =Be!G17 -> 0 | H18: =Be!H17 -> 0 | I18: =Be!I17 -> 0 | J18: =Be!J17 -> 0 | L18: =Be!L17 -> 0
A19: 17. | B19: =Be!A256 -> 0 | C19: =Be!B256 -> 0 | D19: =Be!D256 -> 0 | E19: =Be!E256 -> 0 | F19: =Be!F256 -> 0 | G19: =Be!G256 -> 0 | H19: =Be!H256 -> 0 | I19: =Be!I256 -> 0 | J19: =Be!J256 -> 0 | L19: =Be!A252 -> 0
A20: 18. | B20: =Be!A257 -> 0 | C20: =Be!B257 -> 0 | D20: =Be!D257 -> 0 | E20: =Be!E257 -> 0 | F20: =Be!F257 -> 0 | G20: =Be!G257 -> 0 | H20: =Be!H257 -> 0 | I20: =Be!I257 -> 0 | J20: =Be!J257 -> 0 | L20: =Be!A252 -> 0
A21: 19. | B21: =Be!A106 -> 0 | C21: =Be!B106 -> 0 | D21: =Be!D106 -> 0 | E21: =Be!E106 -> 0 | F21: =Be!F106 -> 0 | G21: =Be!G106 -> 0 | H21: =Be!H106 -> 0 | I21: =Be!I106 -> 0 | J21: =Be!J106 -> 0 | L21: =Be!A102 -> 0
A22: 20. | B22: =Be!A107 -> 0 | C22: =Be!B107 -> 0 | D22: =Be!D107 -> 0 | E22: =Be!E107 -> 0 | F22: =Be!F107 -> 0 | G22: =Be!G107 -> 0 | H22: =Be!H107 -> 0 | I22: =Be!I107 -> 0 | J22: =Be!J107 -> 0 | L22: =Be!A102 -> 0
A23: 21. | B23: =Be!A116 -> 0 | C23: =Be!B116 -> 0 | D23: =Be!D116 -> 0 | E23: =Be!E116 -> 0 | F23: =Be!F116 -> 0 | G23: =Be!G116 -> 0 | H23: =Be!H116 -> 0 | I23: =Be!I116 -> 0 | J23: =Be!J116 -> 0 | L23: =Be!A112 -> 0
A24: 22. | B24: =Be!A117 -> 0 | C24: =Be!B117 -> 0 | D24: =Be!D117 -> 0 | E24: =Be!E117 -> 0 | F24: =Be!F117 -> 0 | G24: =Be!G117 -> 0 | H24: =Be!H117 -> 0 | I24: =Be!I117 -> 0 | J24: =Be!J117 -> 0 | L24: =Be!A112 -> 0
A25: 23. | B25: =Be!A126 -> 0 | C25: =Be!B126 -> 0 | D25: =Be!D126 -> 0 | E25: =Be!E126 -> 0 | F25: =Be!F126 -> 0 | G25: =Be!G126 -> 0 | H25: =Be!H126 -> 0 | I25: =Be!I126 -> 0 | J25: =Be!J126 -> 0 | L25: =Be!A122 -> 0
A26: 24. | B26: =Be!A127 -> 0 | C26: =Be!B127 -> 0 | D26: =Be!D127 -> 0 | E26: =Be!E127 -> 0 | F26: =Be!F127 -> 0 | G26: =Be!G127 -> 0 | H26: =Be!H127 -> 0 | I26: =Be!I127 -> 0 | J26: =Be!J127 -> 0 | L26: =Be!A122 -> 0
A27: 25. | B27: =Be!A136 -> 0 | C27: =Be!B136 -> 0 | D27: =Be!D136 -> 0 | E27: =Be!E136 -> 0 | F27: =Be!F136 -> 0 | G27: =Be!G136 -> 0 | H27: =Be!H136 -> 0 | I27: =Be!I136 -> 0 | J27: =Be!J136 -> 0 | L27: =Be!A132 -> 0
A28: 26. | B28: =Be!A137 -> 0 | C28: =Be!B137 -> 0 | D28: =Be!D137 -> 0 | E28: =Be!E137 -> 0 | F28: =Be!F137 -> 0 | G28: =Be!G137 -> 0 | H28: =Be!H137 -> 0 | I28: =Be!I137 -> 0 | J28: =Be!J137 -> 0 | L28: =Be!A132 -> 0
A29: 27. | B29: =Be!A146 -> 0 | C29: =Be!B146 -> 0 | D29: =Be!D146 -> 0 | E29: =Be!E146 -> 0 | F29: =Be!F146 -> 0 | G29: =Be!G146 -> 0 | H29: =Be!H146 -> 0 | I29: =Be!I146 -> 0 | J29: =Be!J146 -> 0 | L29: =Be!A142 -> 0
A30: 28. | B30: =Be!A147 -> 0 | C30: =Be!B147 -> 0 | D30: =Be!D147 -> 0 | E30: =Be!E147 -> 0 | F30: =Be!F147 -> 0 | G30: =Be!G147 -> 0 | H30: =Be!H147 -> 0 | I30: =Be!I147 -> 0 | J30: =Be!J147 -> 0 | L30: =Be!A142 -> 0
A31: 29. | B31: =Be!A156 -> 0 | C31: =Be!B156 -> 0 | D31: =Be!D156 -> 0 | E31: =Be!E156 -> 0 | F31: =Be!F156 -> 0 | G31: =Be!G156 -> 0 | H31: =Be!H156 -> 0 | I31: =Be!I156 -> 0 | J31: =Be!J156 -> 0 | L31: =Be!A152 -> 0
A32: 30. | B32: =Be!A157 -> 0 | C32: =Be!B157 -> 0 | D32: =Be!D157 -> 0 | E32: =Be!E157 -> 0 | F32: =Be!F157 -> 0 | G32: =Be!G157 -> 0 | H32: =Be!H157 -> 0 | I32: =Be!I157 -> 0 | J32: =Be!J157 -> 0 | L32: =Be!A152 -> 0
A33: 31. | B33: =Be!A166 -> 0 | C33: =Be!B166 -> 0 | D33: =Be!D166 -> 0 | E33: =Be!E166 -> 0 | F33: =Be!F166 -> 0 | G33: =Be!G166 -> 0 | H33: =Be!H166 -> 0 | I33: =Be!I166 -> 0 | J33: =Be!J166 -> 0 | L33: =Be!A162 -> 0
A34: 32. | B34: =Be!A167 -> 0 | C34: =Be!B167 -> 0 | D34: =Be!D167 -> 0 | E34: =Be!E167 -> 0 | F34: =Be!F167 -> 0 | G34: =Be!G167 -> 0 | H34: =Be!H167 -> 0 | I34: =Be!I167 -> 0 | J34: =Be!J167 -> 0 | L34: =Be!A162 -> 0
A35: 33. | B35: =Be!A176 -> 0 | C35: =Be!B176 -> 0 | D35: =Be!D176 -> 0 | E35: =Be!E176 -> 0 | F35: =Be!F176 -> 0 | G35: =Be!G176 -> 0 | H35: =Be!H176 -> 0 | I35: =Be!I176 -> 0 | J35: =Be!J176 -> 0 | L35: =Be!A172 -> 0
A36: 34. | B36: =Be!A177 -> 0 | C36: =Be!B177 -> 0 | D36: =Be!D177 -> 0 | E36: =Be!E177 -> 0 | F36: =Be!F177 -> 0 | G36: =Be!G177 -> 0 | H36: =Be!H177 -> 0 | I36: =Be!I177 -> 0 | J36: =Be!J177 -> 0 | L36: =Be!A172 -> 0
A37: 35. | B37: =Be!A186 -> 0 | C37: =Be!B186 -> 0 | D37: =Be!D186 -> 0 | E37: =Be!E186 -> 0 | F37: =Be!F186 -> 0 | G37: =Be!G186 -> 0 | H37: =Be!H186 -> 0 | I37: =Be!I186 -> 0 | J37: =Be!J186 -> 0 | L37: =Be!A182 -> 0
A38: 36. | B38: =Be!A187 -> 0 | C38: =Be!B187 -> 0 | D38: =Be!D187 -> 0 | E38: =Be!E187 -> 0 | F38: =Be!F187 -> 0 | G38: =Be!G187 -> 0 | H38: =Be!H187 -> 0 | I38: =Be!I187 -> 0 | J38: =Be!J187 -> 0 | L38: =Be!A182 -> 0
A39: 37. | B39: =Be!A196 -> 0 | C39: =Be!B196 -> 0 | D39: =Be!D196 -> 0 | E39: =Be!E196 -> 0 | F39: =Be!F196 -> 0 | G39: =Be!G196 -> 0 | H39: =Be!H196 -> 0 | I39: =Be!I196 -> 0 | J39: =Be!J196 -> 0 | L39: =Be!A192 -> 0
A40: 38. | B40: =Be!A197 -> 0 | C40: =Be!B197 -> 0 | D40: =Be!D197 -> 0 | E40: =Be!E197 -> 0 | F40: =Be!F197 -> 0 | G40: =Be!G197 -> 0 | H40: =Be!H197 -> 0 | I40: =Be!I197 -> 0 | J40: =Be!J197 -> 0 | L40: =Be!A192 -> 0
A41: 39. | B41: =Be!A206 -> 0 | C41: =Be!B206 -> 0 | D41: =Be!D206 -> 0 | E41: =Be!E206 -> 0 | F41: =Be!F206 -> 0 | G41: =Be!G206 -> 0 | H41: =Be!H206 -> 0 | I41: =Be!I206 -> 0 | J41: =Be!J206 -> 0 | L41: =Be!A202 -> 0
A42: 40. | B42: =Be!A207 -> 0 | C42: =Be!B207 -> 0 | D42: =Be!D207 -> 0 | E42: =Be!E207 -> 0 | F42: =Be!F207 -> 0 | G42: =Be!G207 -> 0 | H42: =Be!H207 -> 0 | I42: =Be!I207 -> 0 | J42: =Be!J207 -> 0 | L42: =Be!A202 -> 0
A43: 41. | B43: =Be!A216 -> 0 | C43: =Be!B216 -> 0 | D43: =Be!D216 -> 0 | E43: =Be!E216 -> 0 | F43: =Be!F216 -> 0 | G43: =Be!G216 -> 0 | H43: =Be!H216 -> 0 | I43: =Be!I216 -> 0 | J43: =Be!J216 -> 0 | L43: =Be!A212 -> 0
A44: 42. | B44: =Be!A217 -> 0 | C44: =Be!B217 -> 0 | D44: =Be!D217 -> 0 | E44: =Be!E217 -> 0 | F44: =Be!F217 -> 0 | G44: =Be!G217 -> 0 | H44: =Be!H217 -> 0 | I44: =Be!I217 -> 0 | J44: =Be!J217 -> 0 | L44: =Be!A212 -> 0
A45: 43. | B45: =Be!A226 -> 0 | C45: =Be!B226 -> 0 | D45: =Be!D226 -> 0 | E45: =Be!E226 -> 0 | F45: =Be!F226 -> 0 | G45: =Be!G226 -> 0 | H45: =Be!H226 -> 0 | I45: =Be!I226 -> 0 | J45: =Be!J226 -> 0 | L45: =Be!A222 -> 0
A46: 44. | B46: =Be!A227 -> 0 | C46: =Be!B227 -> 0 | D46: =Be!D227 -> 0 | E46: =Be!E227 -> 0 | F46: =Be!F227 -> 0 | G46: =Be!G227 -> 0 | H46: =Be!H227 -> 0 | I46: =Be!I227 -> 0 | J46: =Be!J227 -> 0 | L46: =Be!A222 -> 0
A47: 45. | B47: =Be!A236 -> 0 | C47: =Be!B236 -> 0 | D47: =Be!D236 -> 0 | E47: =Be!E236 -> 0 | F47: =Be!F236 -> 0 | G47: =Be!G236 -> 0 | H47: =Be!H236 -> 0 | I47: =Be!I236 -> 0 | J47: =Be!J236 -> 0 | L47: =Be!A232 -> 0
A48: 46. | B48: =Be!A237 -> 0 | C48: =Be!B237 -> 0 | D48: =Be!D237 -> 0 | E48: =Be!E237 -> 0 | F48: =Be!F237 -> 0 | G48: =Be!G237 -> 0 | H48: =Be!H237 -> 0 | I48: =Be!I237 -> 0 | J48: =Be!J237 -> 0 | L48: =Be!A232 -> 0
A49: 47. | B49: =Be!A246 -> 0 | C49: =Be!B246 -> 0 | D49: =Be!D246 -> 0 | E49: =Be!E246 -> 0 | F49: =Be!F246 -> 0 | G49: =Be!G246 -> 0 | H49: =Be!H246 -> 0 | I49: =Be!I246 -> 0 | J49: =Be!J246 -> 0 | L49: =Be!A242 -> 0
A50: 48. | B50: =Be!A247 -> 0 | C50: =Be!B247 -> 0 | D50: =Be!D247 -> 0 | E50: =Be!E247 -> 0 | F50: =Be!F247 -> 0 | G50: =Be!G247 -> 0 | H50: =Be!H247 -> 0 | I50: =Be!I247 -> 0 | J50: =Be!J247 -> 0 | L50: =Be!A242 -> 0
A51: 49. | B51: =Be!A20 -> 0 | C51: =Be!B20 -> 0 | D51: =Be!D20 -> 0 | E51: =Be!E20 -> 0 | F51: =Be!F20 -> 0 | G51: =Be!G20 -> 0 | H51: =Be!H20 -> 0 | I51: =Be!I20 -> 0 | J51: =Be!J20 -> 0 | L51: =Be!L20 -> 0
A52: 50. | B52: =Be!A17 -> 0 | C52: =Be!B21 -> 0 | D52: =Be!D21 -> 0 | E52: =Be!E21 -> 0 | F52: =Be!F21 -> 0 | G52: =Be!G21 -> 0 | H52: =Be!H21 -> 0 | I52: =Be!I21 -> 0 | J52: =Be!J21 -> 0 | L52: =Be!L21 -> 0
A53: 51. | B53: =Be!A22 -> 0 | C53: =Be!B22 -> 0 | D53: =Be!D22 -> 0 | E53: =Be!E22 -> 0 | F53: =Be!F22 -> 0 | G53: =Be!G22 -> 0 | H53: =Be!H22 -> 0 | I53: =Be!I22 -> 0 | J53: =Be!J22 -> 0 | L53: =Be!L22 -> 0
A54: 52. | B54: =Be!A23 -> 0 | C54: =Be!B23 -> 0 | D54: =Be!D23 -> 0 | E54: =Be!E23 -> 0 | F54: =Be!F23 -> 0 | G54: =Be!G23 -> 0 | H54: =Be!H23 -> 0 | I54: =Be!I23 -> 0 | J54: =Be!J23 -> 0 | L54: =Be!L23 -> 0
A55: 53. | B55: =Be!A24 -> 0 | C55: =Be!B24 -> 0 | D55: =Be!D24 -> 0 | E55: =Be!E24 -> 0 | F55: =Be!F24 -> 0 | G55: =Be!G24 -> 0 | H55: =Be!H24 -> 0 | I55: =Be!I24 -> 0 | J55: =Be!J24 -> 0 | L55: =Be!L24 -> 0
A56: 54. | B56: =Be!A25 -> 0 | C56: =Be!B25 -> 0 | D56: =Be!D25 -> 0 | E56: =Be!E25 -> 0 | F56: =Be!F25 -> 0 | G56: =Be!G25 -> 0 | H56: =Be!H25 -> 0 | I56: =Be!I25 -> 0 | J56: =Be!J25 -> 0 | L56: =Be!L25 -> 0
A57: 55. | B57: =Be!A26 -> 0 | C57: =Be!B26 -> 0 | D57: =Be!D26 -> 0 | E57: =Be!E26 -> 0 | F57: =Be!F26 -> 0 | G57: =Be!G26 -> 0 | H57: =Be!H26 -> 0 | I57: =Be!I26 -> 0 | J57: =Be!J26 -> 0 | L57: =Be!L26 -> 0
A58: 56. | B58: =Be!A27 -> 0 | C58: =Be!B27 -> 0 | D58: =Be!D27 -> 0 | E58: =Be!E27 -> 0 | F58: =Be!F27 -> 0 | G58: =Be!G27 -> 0 | H58: =Be!H27 -> 0 | I58: =Be!I27 -> 0 | J58: =Be!J27 -> 0 | L58: =Be!L27 -> 0

Sheet E. IV. kcs
A1: Kis iskolák IV. korcsoport LEÁNY EGYÉNI végeredmény (Sorbarendezés Ctrl + g )
A2: Ssz | B2: Név | C2: Szév | D2: 100 m | E2: p | F2: Távol | G2: p | H2: Kisl | I2: p | J2: Összp | L2: Iskola
A3: 1. | B3: =Be!A78 -> Bán Dzsenifer Réka | C3: =Be!B78 -> 2007 | D3: =Be!D78 -> 14.7 | E3: =Be!E78 -> 147 | F3: =Be!F78 -> 4.32 | G3: =Be!G78 -> 147 | H3: =Be!H78 -> 34.16 | I3: =Be!I78 -> 115 | J3: =Be!J78 -> 409 | L3: =Be!A72 -> Kölesdi Béri Balogh Ádám Ált. Isk.
A4: 2. | B4: =Be!A89 -> Kolozsvári Hilcz Kitti | C4: =Be!B89 -> 2007 | D4: =Be!D89 -> 14.4 | E4: =Be!E89 -> 160 | F4: =Be!F89 -> 3.92 | G4: =Be!G89 -> 121 | H4: =Be!H89 -> 31.95 | I4: =Be!I89 -> 105 | J4: =Be!J89 -> 386 | L4: =Be!A82 -> BÁI Kakasd
A5: 3. | B5: =Be!A79 -> Kalmár Zsófia | C5: =Be!B79 -> 2007 | D5: =Be!D79 -> 14.6 | E5: =Be!E79 -> 151 | F5: =Be!F79 -> 3.72 | G5: =Be!G79 -> 108 | H5: =Be!H79 -> 31.2 | I5: =Be!I79 -> 102 | J5: =Be!J79 -> 361 | L5: =Be!A72 -> Kölesdi Béri Balogh Ádám Ált. Isk.
A6: 4. | B6: =Be!A48 -> Éri Boglárka | C6: =Be!B48 -> 2008 | D6: =Be!D48 -> 14.9 | E6: =Be!E48 -> 140 | F6: =Be!F48 -> 3.77 | G6: =Be!G48 -> 111 | H6: =Be!H48 -> 27.29 | I6: =Be!I48 -> 86 | J6: =Be!J48 -> 337 | L6: =Be!A42 -> Teveli Ált. Isk
A7: 5. | B7: =Be!A68 -> Bordás Lara | C7: =Be!B68 -> 2008 | D7: =Be!D68 -> 15.3 | E7: =Be!E68 -> 125 | F7: =Be!F68 -> 3.74 | G7: =Be!G68 -> 109 | H7: =Be!H68 -> 30.24 | I7: =Be!I68 -> 98 | J7: =Be!J68 -> 332 | L7: =Be!A62 -> Hőgyészi Hegyhát Ált. Isk.
A8: 6. | B8: =Be!A28 -> Horváth Réka | C8: =Be!B28 -> 2007 | D8: =Be!D28 -> 15 | E8: =Be!E28 -> 136 | F8: =Be!F28 -> 3.96 | G8: =Be!G28 -> 124 | H8: =Be!H28 -> 23.45 | I8: =Be!I28 -> 71 | J8: =Be!J28 -> 331 | L8: =Be!L28 -> Hőgyész
A9: 7. | B9: =Be!A69 -> Orsós Nikoletta | C9: =Be!B69 -> 2008 | D9: =Be!D69 -> 17 | E9: =Be!E69 -> 64 | F9: =Be!F69 -> 3.78 | G9: =Be!G69 -> 112 | H9: =Be!H69 -> 39.95 | I9: =Be!I69 -> 139 | J9: =Be!J69 -> 315 | L9: =Be!A62 -> Hőgyészi Hegyhát Ált. Isk.
A10: 8. | B10: =Be!A32 -> Varga Dóra | C10: =Be!B32 -> 2008 | D10: =Be!D32 -> 14.5 | E10: =Be!E32 -> 156 | F10: =Be!F32 -> 3.32 | G10: =Be!G32 -> 84 | H10: =Be!H32 -> 20 | I10: =Be!I32 -> 58 | J10: =Be!J32 -> 298 | L10: =Be!L32 -> Decs
A11: 9. | B11: =Be!A49 -> Erb Zsüliett | C11: =Be!B49 -> 2008 | D11: =Be!D49 -> 16.4 | E11: =Be!E49 -> 85 | F11: =Be!F49 -> 3.3 | G11: =Be!G49 -> 83 | H11: =Be!H49 -> 32.65 | I11: =Be!I49 -> 108 | J11: =Be!J49 -> 276 | L11: =Be!A42 -> Teveli Ált. Isk
A12: 10. | B12: =Be!A98 -> Gellér Fanni | C12: =Be!B98 -> 2007 | D12: =Be!D98 -> 16.2 | E12: =Be!E98 -> 91 | F12: =Be!F98 -> 3.58 | G12: =Be!G98 -> 99 | H12: =Be!H98 -> 18.05 | I12: =Be!I98 -> 50 | J12: =Be!J98 -> 240 | L12: =Be!A92 -> Őcsényi Perczel Mór Ált. Isk.
A13: 11. | B13: =Be!A88 -> Pesti Lívia | C13: =Be!B88 -> 2008 | D13: =Be!D88 -> 17 | E13: =Be!E88 -> 64 | F13: =Be!F88 -> 3.39 | G13: =Be!G88 -> 88 | H13: =Be!H88 -> 26.55 | I13: =Be!I88 -> 83 | J13: =Be!J88 -> 235 | L13: =Be!A82 -> BÁI Kakasd
A14: 12. | B14: =Be!A30 -> Auvalszki Renáta | C14: =Be!B30 -> 2008 | D14: =Be!D30 -> 16.3 | E14: =Be!E30 -> 88 | F14: =Be!F30 -> 2.8 | G14: =Be!G30 -> 54 | H14: =Be!H30 -> 25.76 | I14: =Be!I30 -> 80 | J14: =Be!J30 -> 222 | L14: =Be!L30 -> Várdomb
A15: 13. | B15: =Be!A99 -> Naszvadi Hunorka | C15: =Be!B99 -> 2007 | D15: =Be!D99 -> 17.2 | E15: =Be!E99 -> 57 | F15: =Be!F99 -> 3.56 | G15: =Be!G99 -> 98 | H15: =Be!H99 -> 21.07 | I15: =Be!I99 -> 62 | J15: =Be!J99 -> 217 | L15: =Be!A92 -> Őcsényi Perczel Mór Ált. Isk.
A16: 14. | B16: =Be!A58 -> Keinráth Anna | C16: =Be!B58 -> 2007 | D16: =Be!D58 -> 16.6 | E16: =Be!E58 -> 78 | F16: =Be!F58 -> 2.72 | G16: =Be!G58 -> 49 | H16: =Be!H58 -> 26.86 | I16: =Be!I58 -> 85 | J16: =Be!J58 -> 212 | L16: =Be!A52 -> Várdomb-Alsónána Ált. Isk.
A17: 15. | B17: =Be!A59 -> Medveczki Dóra | C17: =Be!B59 -> 2007 | D17: =Be!D59 -> 18.8 | E17: =Be!E59 -> 6 | F17: =Be!F59 -> 3.08 | G17: =Be!G59 -> 70 | H17: =Be!H59 -> 32.3 | I17: =Be!I59 -> 107 | J17: =Be!J59 -> 183 | L17: =Be!A52 -> Várdomb-Alsónána Ált. Isk.
A18: 16. | B18: =Be!A31 -> Pasztovszki Zsófia | C18: =Be!B31 -> 2008 | D18: =Be!D31 -> 18.7 | E18: =Be!E31 -> 9 | F18: =Be!F31 -> 2.57 | G18: =Be!G31 -> 41 | H18: =Be!H31 -> 20.97 | I18: =Be!I31 -> 61 | J18: =Be!J31 -> 111 | L18: =Be!L31 -> Várdomb
A19: 17. | B19: =Be!A29 -> Kovács Ramóna | C19: =Be!B29 -> 2007 | D19: =Be!D29 -> 20 | E19: =Be!E29 -> 0 | F19: =Be!F29 -> 0 | G19: =Be!G29 -> 0 | H19: =Be!H29 -> 23.26 | I19: =Be!I29 -> 70 | J19: =Be!J29 -> 70 | L19: =Be!L29 -> Hőgyész
A20: 18. | B20: =Be!A258 -> 0 | C20: =Be!B258 -> 0 | D20: =Be!D258 -> 0 | E20: =Be!E258 -> 0 | F20: =Be!F258 -> 0 | G20: =Be!G258 -> 0 | H20: =Be!H258 -> 0 | I20: =Be!I258 -> 0 | J20: =Be!J258 -> 0 | L20: =Be!A252 -> 0
A21: 19. | B21: =Be!A259 -> 0 | C21: =Be!B259 -> 0 | D21: =Be!D259 -> 0 | E21: =Be!E259 -> 0 | F21: =Be!F259 -> 0 | G21: =Be!G259 -> 0 | H21: =Be!H259 -> 0 | I21: =Be!I259 -> 0 | J21: =Be!J259 -> 0 | L21: =Be!A252 -> 0
A22: 20. | B22: =Be!A108 -> 0 | C22: =Be!B108 -> 0 | D22: =Be!D108 -> 0 | E22: =Be!E108 -> 0 | F22: =Be!F108 -> 0 | G22: =Be!G108 -> 0 | H22: =Be!H108 -> 0 | I22: =Be!I108 -> 0 | J22: =Be!J108 -> 0 | L22: =Be!A102 -> 0
A23: 21. | B23: =Be!A109 -> 0 | C23: =Be!B109 -> 0 | D23: =Be!D109 -> 0 | E23: =Be!E109 -> 0 | F23: =Be!F109 -> 0 | G23: =Be!G109 -> 0 | H23: =Be!H109 -> 0 | I23: =Be!I109 -> 0 | J23: =Be!J109 -> 0 | L23: =Be!A102 -> 0
A24: 22. | B24: =Be!A118 -> 0 | C24: =Be!B118 -> 0 | D24: =Be!D118 -> 0 | E24: =Be!E118 -> 0 | F24: =Be!F118 -> 0 | G24: =Be!G118 -> 0 | H24: =Be!H118 -> 0 | I24: =Be!I118 -> 0 | J24: =Be!J118 -> 0 | L24: =Be!A112 -> 0
A25: 23. | B25: =Be!A119 -> 0 | C25: =Be!B119 -> 0 | D25: =Be!D119 -> 0 | E25: =Be!E119 -> 0 | F25: =Be!F119 -> 0 | G25: =Be!G119 -> 0 | H25: =Be!H119 -> 0 | I25: =Be!I119 -> 0 | J25: =Be!J119 -> 0 | L25: =Be!A112 -> 0
A26: 24. | B26: =Be!A128 -> 0 | C26: =Be!B128 -> 0 | D26: =Be!D128 -> 0 | E26: =Be!E128 -> 0 | F26: =Be!F128 -> 0 | G26: =Be!G128 -> 0 | H26: =Be!H128 -> 0 | I26: =Be!I128 -> 0 | J26: =Be!J128 -> 0 | L26: =Be!A122 -> 0
A27: 25. | B27: =Be!A129 -> 0 | C27: =Be!B129 -> 0 | D27: =Be!D129 -> 0 | E27: =Be!E129 -> 0 | F27: =Be!F129 -> 0 | G27: =Be!G129 -> 0 | H27: =Be!H129 -> 0 | I27: =Be!I129 -> 0 | J27: =Be!J129 -> 0 | L27: =Be!A122 -> 0
A28: 26. | B28: =Be!A138 -> 0 | C28: =Be!B138 -> 0 | D28: =Be!D138 -> 0 | E28: =Be!E138 -> 0 | F28: =Be!F138 -> 0 | G28: =Be!G138 -> 0 | H28: =Be!H138 -> 0 | I28: =Be!I138 -> 0 | J28: =Be!J138 -> 0 | L28: =Be!A132 -> 0
A29: 27. | B29: =Be!A139 -> 0 | C29: =Be!B139 -> 0 | D29: =Be!D139 -> 0 | E29: =Be!E139 -> 0 | F29: =Be!F139 -> 0 | G29: =Be!G139 -> 0 | H29: =Be!H139 -> 0 | I29: =Be!I139 -> 0 | J29: =Be!J139 -> 0 | L29: =Be!A132 -> 0
A30: 28. | B30: =Be!A148 -> 0 | C30: =Be!B148 -> 0 | D30: =Be!D148 -> 0 | E30: =Be!E148 -> 0 | F30: =Be!F148 -> 0 | G30: =Be!G148 -> 0 | H30: =Be!H148 -> 0 | I30: =Be!I148 -> 0 | J30: =Be!J148 -> 0 | L30: =Be!A142 -> 0
A31: 29. | B31: =Be!A149 -> 0 | C31: =Be!B149 -> 0 | D31: =Be!D149 -> 0 | E31: =Be!E149 -> 0 | F31: =Be!F149 -> 0 | G31: =Be!G149 -> 0 | H31: =Be!H149 -> 0 | I31: =Be!I149 -> 0 | J31: =Be!J149 -> 0 | L31: =Be!A142 -> 0
A32: 30. | B32: =Be!A158 -> 0 | C32: =Be!B158 -> 0 | D32: =Be!D158 -> 0 | E32: =Be!E158 -> 0 | F32: =Be!F158 -> 0 | G32: =Be!G158 -> 0 | H32: =Be!H158 -> 0 | I32: =Be!I158 -> 0 | J32: =Be!J158 -> 0 | L32: =Be!A152 -> 0
A33: 31. | B33: =Be!A159 -> 0 | C33: =Be!B159 -> 0 | D33: =Be!D159 -> 0 | E33: =Be!E159 -> 0 | F33: =Be!F159 -> 0 | G33: =Be!G159 -> 0 | H33: =Be!H159 -> 0 | I33: =Be!I159 -> 0 | J33: =Be!J159 -> 0 | L33: =Be!A152 -> 0
A34: 32. | B34: =Be!A168 -> 0 | C34: =Be!B168 -> 0 | D34: =Be!D168 -> 0 | E34: =Be!E168 -> 0 | F34: =Be!F168 -> 0 | G34: =Be!G168 -> 0 | H34: =Be!H168 -> 0 | I34: =Be!I168 -> 0 | J34: =Be!J168 -> 0 | L34: =Be!A162 -> 0
A35: 33. | B35: =Be!A169 -> 0 | C35: =Be!B169 -> 0 | D35: =Be!D169 -> 0 | E35: =Be!E169 -> 0 | F35: =Be!F169 -> 0 | G35: =Be!G169 -> 0 | H35: =Be!H169 -> 0 | I35: =Be!I169 -> 0 | J35: =Be!J169 -> 0 | L35: =Be!A162 -> 0
A36: 34. | B36: =Be!A178 -> 0 | C36: =Be!B178 -> 0 | D36: =Be!D178 -> 0 | E36: =Be!E178 -> 0 | F36: =Be!F178 -> 0 | G36: =Be!G178 -> 0 | H36: =Be!H178 -> 0 | I36: =Be!I178 -> 0 | J36: =Be!J178 -> 0 | L36: =Be!A172 -> 0
A37: 35. | B37: =Be!A179 -> 0 | C37: =Be!B179 -> 0 | D37: =Be!D179 -> 0 | E37: =Be!E179 -> 0 | F37: =Be!F179 -> 0 | G37: =Be!G179 -> 0 | H37: =Be!H179 -> 0 | I37: =Be!I179 -> 0 | J37: =Be!J179 -> 0 | L37: =Be!A172 -> 0
A38: 36. | B38: =Be!A188 -> 0 | C38: =Be!B188 -> 0 | D38: =Be!D188 -> 0 | E38: =Be!E188 -> 0 | F38: =Be!F188 -> 0 | G38: =Be!G188 -> 0 | H38: =Be!H188 -> 0 | I38: =Be!I188 -> 0 | J38: =Be!J188 -> 0 | L38: =Be!A182 -> 0
A39: 37. | B39: =Be!A189 -> 0 | C39: =Be!B189 -> 0 | D39: =Be!D189 -> 0 | E39: =Be!E189 -> 0 | F39: =Be!F189 -> 0 | G39: =Be!G189 -> 0 | H39: =Be!H189 -> 0 | I39: =Be!I189 -> 0 | J39: =Be!J189 -> 0 | L39: =Be!A182 -> 0
A40: 38. | B40: =Be!A198 -> 0 | C40: =Be!B198 -> 0 | D40: =Be!D198 -> 0 | E40: =Be!E198 -> 0 | F40: =Be!F198 -> 0 | G40: =Be!G198 -> 0 | H40: =Be!H198 -> 0 | I40: =Be!I198 -> 0 | J40: =Be!J198 -> 0 | L40: =Be!A192 -> 0
A41: 39. | B41: =Be!A199 -> 0 | C41: =Be!B199 -> 0 | D41: =Be!D199 -> 0 | E41: =Be!E199 -> 0 | F41: =Be!F199 -> 0 | G41: =Be!G199 -> 0 | H41: =Be!H199 -> 0 | I41: =Be!I199 -> 0 | J41: =Be!J199 -> 0 | L41: =Be!A192 -> 0
A42: 40. | B42: =Be!A208 -> 0 | C42: =Be!B208 -> 0 | D42: =Be!D208 -> 0 | E42: =Be!E208 -> 0 | F42: =Be!F208 -> 0 | G42: =Be!G208 -> 0 | H42: =Be!H208 -> 0 | I42: =Be!I208 -> 0 | J42: =Be!J208 -> 0 | L42: =Be!A202 -> 0
A43: 41. | B43: =Be!A209 -> 0 | C43: =Be!B209 -> 0 | D43: =Be!D209 -> 0 | E43: =Be!E209 -> 0 | F43: =Be!F209 -> 0 | G43: =Be!G209 -> 0 | H43: =Be!H209 -> 0 | I43: =Be!I209 -> 0 | J43: =Be!J209 -> 0 | L43: =Be!A202 -> 0
A44: 42. | B44: =Be!A218 -> 0 | C44: =Be!B218 -> 0 | D44: =Be!D218 -> 0 | E44: =Be!E218 -> 0 | F44: =Be!F218 -> 0 | G44: =Be!G218 -> 0 | H44: =Be!H218 -> 0 | I44: =Be!I218 -> 0 | J44: =Be!J218 -> 0 | L44: =Be!A212 -> 0
A45: 43. | B45: =Be!A219 -> 0 | C45: =Be!B219 -> 0 | D45: =Be!D219 -> 0 | E45: =Be!E219 -> 0 | F45: =Be!F219 -> 0 | G45: =Be!G219 -> 0 | H45: =Be!H219 -> 0 | I45: =Be!I219 -> 0 | J45: =Be!J219 -> 0 | L45: =Be!A212 -> 0
A46: 44. | B46: =Be!A228 -> 0 | C46: =Be!B228 -> 0 | D46: =Be!D228 -> 0 | E46: =Be!E228 -> 0 | F46: =Be!F228 -> 0 | G46: =Be!G228 -> 0 | H46: =Be!H228 -> 0 | I46: =Be!I228 -> 0 | J46: =Be!J228 -> 0 | L46: =Be!A222 -> 0
A47: 45. | B47: =Be!A229 -> 0 | C47: =Be!B229 -> 0 | D47: =Be!D229 -> 0 | E47: =Be!E229 -> 0 | F47: =Be!F229 -> 0 | G47: =Be!G229 -> 0 | H47: =Be!H229 -> 0 | I47: =Be!I229 -> 0 | J47: =Be!J229 -> 0 | L47: =Be!A222 -> 0
A48: 46. | B48: =Be!A238 -> 0 | C48: =Be!B238 -> 0 | D48: =Be!D238 -> 0 | E48: =Be!E238 -> 0 | F48: =Be!F238 -> 0 | G48: =Be!G238 -> 0 | H48: =Be!H238 -> 0 | I48: =Be!I238 -> 0 | J48: =Be!J238 -> 0 | L48: =Be!A232 -> 0
A49: 47. | B49: =Be!A239 -> 0 | C49: =Be!B239 -> 0 | D49: =Be!D239 -> 0 | E49: =Be!E239 -> 0 | F49: =Be!F239 -> 0 | G49: =Be!G239 -> 0 | H49: =Be!H239 -> 0 | I49: =Be!I239 -> 0 | J49: =Be!J239 -> 0 | L49: =Be!A232 -> 0
A50: 48. | B50: =Be!A248 -> 0 | C50: =Be!B248 -> 0 | D50: =Be!D248 -> 0 | E50: =Be!E248 -> 0 | F50: =Be!F248 -> 0 | G50: =Be!G248 -> 0 | H50: =Be!H248 -> 0 | I50: =Be!I248 -> 0 | J50: =Be!J248 -> 0 | L50: =Be!A242 -> 0
A51: 49. | B51: =Be!A249 -> 0 | C51: =Be!B249 -> 0 | D51: =Be!D249 -> 0 | E51: =Be!E249 -> 0 | F51: =Be!F249 -> 0 | G51: =Be!G249 -> 0 | H51: =Be!H249 -> 0 | I51: =Be!I249 -> 0 | J51: =Be!J249 -> 0 | L51: =Be!A242 -> 0
A52: 50. | B52: =Be!A33 -> 0 | C52: =Be!B33 -> 0 | D52: =Be!D33 -> 0 | E52: =Be!E33 -> 0 | F52: =Be!F33 -> 0 | G52: =Be!G33 -> 0 | H52: =Be!H33 -> 0 | I52: =Be!I33 -> 0 | J52: =Be!J33 -> 0 | L52: =Be!L33 -> 0
A53: 51. | B53: =Be!A34 -> 0 | C53: =Be!B34 -> 0 | D53: =Be!D34 -> 0 | E53: =Be!E34 -> 0 | F53: =Be!F34 -> 0 | G53: =Be!G34 -> 0 | H53: =Be!H34 -> 0 | I53: =Be!I34 -> 0 | J53: =Be!J34 -> 0 | L53: =Be!L34 -> 0
A54: 52. | B54: =Be!A35 -> 0 | C54: =Be!B35 -> 0 | D54: =Be!D35 -> 0 | E54: =Be!E35 -> 0 | F54: =Be!F35 -> 0 | G54: =Be!G35 -> 0 | H54: =Be!H35 -> 0 | I54: =Be!I35 -> 0 | J54: =Be!J35 -> 0 | L54: =Be!L35 -> 0
A55: 53. | B55: =Be!A36 -> 0 | C55: =Be!B36 -> 0 | D55: =Be!D36 -> 0 | E55: =Be!E36 -> 0 | F55: =Be!F36 -> 0 | G55: =Be!G36 -> 0 | H55: =Be!H36 -> 0 | I55: =Be!I36 -> 0 | J55: =Be!J36 -> 0 | L55: =Be!L36 -> 0
A56: 54. | B56: =Be!A37 -> 0 | C56: =Be!B37 -> 0 | D56: =Be!D37 -> 0 | E56: =Be!E37 -> 0 | F56: =Be!F37 -> 0 | G56: =Be!G37 -> 0 | H56: =Be!H37 -> 0 | I56: =Be!I37 -> 0 | J56: =Be!J37 -> 0 | L56: =Be!L37 -> 0
A57: 55. | B57: =Be!A38 -> 0 | C57: =Be!B38 -> 0 | D57: =Be!D38 -> 0 | E57: =Be!E38 -> 0 | F57: =Be!F38 -> 0 | G57: =Be!G38 -> 0 | H57: =Be!H38 -> 0 | I57: =Be!I38 -> 0 | J57: =Be!J38 -> 0 | L57: =Be!L38 -> 0
A58: 56. | B58: =Be!A39 -> 0 | C58: =Be!B39 -> 0 | D58: =Be!D39 -> 0 | E58: =Be!E39 -> 0 | F58: =Be!F39 -> 0 | G58: =Be!G39 -> 0 | H58: =Be!H39 -> 0 | I58: =Be!I39 -> 0 | J58: =Be!J39 -> 0 | L58: =Be!L39 -> 0
